{"text_format":"1","workbook":"xlsx","n_sheets":9,"sheets":["Instructivo","DEMANDA ANUAL","VOLUMEN DE QUEJAS","COSTO ADMINISTRACIÓN PÚBLICA","RESUMEN DE COSTOS AP","AUXILIAR COSTO ADMINISTRACIÓN","TIEMPO DE RESPUESTA","CANAL ATENCIÓN","RESUMEN"],"not_rendered":{"charts":0,"images":7,"macros":1,"external_links":0,"defined_names":2,"comments":8,"pivot_tables":0},"unopened":[],"bounds":{"document_bytes":16777216,"sheet_cells":100000,"rows_first":2000,"rows_last":500,"rows_between":2000,"halvings":0,"cell_chars":16384,"cell_head_chars":4096},"cells_cut":0,"cells_raw":0,"read":"whole","date_system":"1900"}

{"sheet":"Instructivo","index":0,"n_rows":70,"n_cols":1,"rows_kept":70,"cut":false,"hidden":false,"merged":[]}
["CRITERIO DE PRIORIZACIÓN DE TRÁMITES ADMINISTRATIVOS"]
["Instructivo"]
["Consideraciones generales"]
[]
["En las hojas “COSTO DE ADMINISTRACIÓN PÚBLICA”y “RESUMEN”  para añadir más trámites y que apliquen las fórmulas, se deberá seleccionar la primera fila y copiarla una por cada trámite de la entidad"]
[]
["Todas las hojas tienen columnas de color celeste, en las cuales NO deben ingresar valores ya que contienen fórmulas."]
["Para la carga en GOB.EC. La institución debe recordar que el peso máximo del archivo es de 2 MB."]
["Esquema de puntuación"]
["Para priorizar un trámite, se realizará un análisis de criterios básicos y adicionales basado en información que disponen las instituciones sujetas a esta norma técnica. Cada criterio será puntuado según los lineamientos presentes en esta norma."]
["a) Demanda Anual"]
["Considerará el volumen o frecuencia de las solicitudes que ingresan al año a cada institución para la gestión de un trámite en particular."]
["La identificación del volumen anual de los trámites se realizará a través de sus registros de transacciones y/o el número de visitas de consulta de información realizadas a través de páginas web institucionales."]
["Para realizar el registro realice lo siguiente:"]
["1.- Seleccione la hoja DEMANDA ANUAL"]
["2.- Ingrese los trámites de la institución registrando el identificador y nombre en las columnas respectivas.  "]
["3.- Para cada trámite debe especificar en la columna DEMANDA ANUAL el volumen o frecuencia anual, de acuerdo a lo mencionado anteriormente."]
["4.- Una vez terminado el llenado solicitado presione el botón PUNTUACIÓN, se ordenara de menor a mayor. "]
["5.- Usted visualizará el ordenamiento de los trámites ingresados de acuerdo al número de  volumen o frecuencia anual."]
["6.- Así mismo, usted visualizará el puntaje obtenido en la columna PUNTUACIÓN de acuerdo al grupo obtenido por cada trámite de acuerdo al número de volumen o frecuencia anual cosiderando lo siguiente: ** Primer grupo (trámites con menor demanda no incluye los trámites con demanda 0 ) = 3\n** Segundo grupo (trámites con demanda intermedia) = 6\n** Tercer grupo (trámites con mayor demanda) = 10"]
["Cada vez que requiera actualizar el puntaje presionando el botón puntuación, debe verificar que la celda de la columna puntaje se encuentren vacías, es decir, se debe borrar cualquier valor de puntaje obtenido previamente."]
["b) Volumen de quejas asociadas a un trámite: "]
["Considerará la cantidad de quejas recibidas en relación a un trámite durante un año. Estas quejas deberán estar documentadas en medios físicos y/o digitales."]
["Para determinar la puntuación, se colocará en una tabla todos los trámites con sus correspondientes quejas ordenándose de menor a mayor. Se dividirá en 2 partes en los que cada grupo contenga la misma cantidad de trámites."]
["Para realizar el registro realice lo siguiente:"]
["1.- Seleccione la hoja VOLUMEN DE QUEJAS"]
["2.- Ingrese los trámites de la institución registrando el identificador y nombre en las columnas respectivas.  Si usted requiere de acuerdo al número de trámites copie filas adicionales que estén dentro del cuadro"]
["3.- Para cada trámite debe especificar en la columna VOLUMEN QUEJAS el número de quejas anual, de acuerdo a lo mencionado anteriormente."]
["4.- Una vez terminado el llenado solicitado presione el botón PUNTUACIÓN."]
["5.- Usted visualizará el ordenamiento de los trámites ingresados de acuerdo al número de  volumen o frecuencia anual."]
["6.- Así mismo, usted visualizará el puntaje obtenido en la columna PUNTUACIÓN de acuerdo al grupo obtenido por cada trámite de acuerdo al número de volumen o frecuencia anual cosiderando lo siguiente: La puntuación se basará en los siguientes grupos:\n** Primer grupo (trámites con menor cantidad de quejas, no incluye los trámites con queja 0 ) = 4\n** Segundo grupo (trámites con mayor porcentaje de quejas) = 10"]
["El valor del volumen de quejas no debe ser superior al valor del volumen de la demana, no le permitirá registrar un valor."]
["c) Costo para la administración pública: "]
["En cada trámite, basado en un caso estándar, se deberá estimar el costo incurrido en el costo de personal y recursos necesarios para su atención desde que el administrado entregó todos los requisitos hasta que la institución entregue el producto, respuesta o servicio requerido en el trámite. Se considerará:"]
["• Costo de personal:"]
["Costo del personal para atender el trámite, se excluyen actividades realizadas automáticamente o que dependen del administrado. El tiempo deberá considerar únicamente el tiempo efectivo de trabajo del personal, no debe considerar el tiempo de espera o de movimiento."]
["• Costo de recursos:"]
["Se deberá considerar el costo directo en el que la institución debe incurrir para atender un trámite. Se debe considerar los insumos o materia prima necesaria u cualquier otro que la institución considere pertinente."]
["Para realizar el registro realice lo siguiente:"]
["1.- Seleccione la hoja COSTO ADMINISTRACIÓN PÚBLICA"]
["2.- Ingrese los trámites de la institución registrando el identificador y nombre en las columnas respectivas.  Si usted requiere de acuerdo al número de trámites copie filas adicionales que estén dentro del cuadro"]
["3.- Para calcular el tiempo de las actividades, utilizar la hoja AUXILIAR COSTO ADMINISTRACIÓN donde deberá listar todas las actividades que realiza la institución en un caso estándar y asignar el tiempo mínimo que toma cada actvidad (en horas). El tiempo total de las actividades, deberá ingresar en la correspondiente celda de la hoja COSTO ADMINISTRACIÓN PÚBLICA"]
["4.- En función de la información registrada en el paso 3, la matriz entregará el costo del personal"]
["5.- Completar la columna \"Costo recursos\", en la cual ingresará el costo directo en el que incurre la institución para entregar el trámite. En este valor se considerarán los valores correspondientes a insumos y/o materia prima mínimos que se invierten por cada trámite (no se considera mano de obra)"]
["6.- La columna \"Costo para la adm. pública\" mostrará el costto de este criterio para cada trámite"]
["7,- Para que la fórmula funcione debe arrastrar hacia abajo al último de los támites ingresados, no copiar"]
["7.- Una vez que disponga del Costo para la administración pública, presionar el botón \"GENERAR\"."]
["8. Visualizar la hoja “RESUMEN DE COSTO AP” en la que va a encontrar copiada las celdas necesarias para el ordenamiento y puntuación de las mismas al presionar el botón “PUNTUACIÓN”"]
[]
["d) Tiempo de respuesta: "]
["Considerará los tiempos que a las instituciones les toma dar respuesta a un trámite desde que reciben la solicitud del administrado hasta la finalización del mismo. Para la definición del tiempo se considerará un caso estándar."]
["Para determinar la puntuación, se colocará en una tabla todos los trámites con el tiempo de respuesta, ordenándose de menor a mayor. Se dividirá en 4 grupos, en los que cada uno contenga la misma cantidad de trámites."]
["Para realizar el registro realice lo siguiente:"]
["1.- Seleccione la hoja TIEMPO DE RESPUESTA"]
["2.- Ingrese los trámites de la institución registrando el identificador y nombre en las columnas respectivas.  Si usted requiere de acuerdo al número de trámites copie filas adicionales que estén dentro del cuadro"]
["3.- Para cada trámite debe especificar en la columna TIEMPO RESPUESTA el tiempo, de acuerdo a lo mencionado anteriormente."]
["4.- Una vez terminado el llenado solicitado presione el botón PUNTUACIÓN."]
["5.- Usted visualizará el ordenamiento de los trámites ingresados de acuerdo al número de  volumen o frecuencia anual."]
["6.- Así mismo, usted visualizará el puntaje obtenido en la columna PUNTUACIÓN de acuerdo al grupo obtenido por cada trámite de acuerdo al número de volumen o frecuencia anual cosiderando lo siguiente:  La puntuación considera lo siguiente:\n** Primer grupo (menor o igual a 40 horas laboralres) = 0\n** Segundo grupo mayor  40 horas laboralres) = 30"]
["e) Canal de atención: "]
["Considerará los canales de atención a través de los cuales el administrado puede iniciar el trámite."]
["Para realizar el registro realice lo siguiente:"]
["1.- Seleccione la hoja CANAL ATENCIÓN"]
["2.- Ingrese los trámites de la institución registrando el identificador y nombre en las columnas respectivas.  Si usted requiere de acuerdo al número de trámites copie filas adicionales que estén dentro del cuadro"]
["3.- Para cada trámite debe seleccionar el canal de atención del trámite en la columna CANAL ATENCIÓN, que pueden ser: \nEl trámite se puede completar totalmente en línea: Se considera trámite totalmente en línea cuando el administrado no requiere realizar ninguna interacción presencial con la institución = 0\nEl trámite no se puede completar totalmente en línea: Se considera este caso, cuando el trámite incluye al menos una actividad, incluido mecanismos de pago, en la que el administrado deba acudir presencialmente a la institución, para la realización de dicho trámite. Los trámites presenciales se consideran dentro de esta categoría = 10"]
["4.- De acuerdo a la selección usted obtendrá la puntuación del trámite que se visualizará en la columna PUNTUACIÓN."]
[]
["f) Resumen"]
["En esta hoja deberá consolidar todas las puntuaciones obtenidas para cada trámite en los criterios a) hasta e). Adicionalmente deberá analizar los criterios adicionales que dispone la norma técnica, para estos últimos solamente deberá seleccionar en la celda correspondiente y la matriz asignará la puntuación adicional. Los criterios que deberá considerar son:\n- NECESIDADES CIUDADANAS: Si la institución ha implementado mecanismos para identificar necesidades ciudadanas respecto al trámite, seleccionar \"SI\", caso contrario, seleccionar \"NO\"\n- SUSCEPTIBILIDAD A CORRUPCIÓN: Si la institución dispone de información documentada sobre presuntos actos de corrupción, seleccionar \"SI\", caso contrario, seleccionar \"NO\"\n- VOLUMEN DE DEVOLUCIONES: Si la institución posee documentación sobre devoluciones del trámite en una cantidad significativa, seleccionar \"SI\", caso contrario, seleccionar \"NO\"\nPara que funcione la lista depelgable debe arrastrar la lista y la puntuación hacia abajo al último de los támites ingresados, no copiar"]
["En la columna puntaje total se realizará la sumatoria de los valores de los criterios básicos y adicionales. Este valor deberá registrarse en la plataforma GOB.EC"]

{"sheet":"DEMANDA ANUAL","index":1,"n_rows":66,"n_cols":4,"rows_kept":66,"cut":false,"hidden":false,"merged":[[0,0,0,3],[1,0,1,3]]}
["PRIORIZACIÓN DE TRÁMITES ADMINISTRATIVOS"]
["DEMANDA ANUAL"]
[]
["IDENTIFICADOR","TRÁMITE","DEMANDA ANUAL","PUNTAJE"]
["MINFIN-004-01-02","Actualización del catálogo de organismos y correlativos (préstamos/donaciones) para entidades que conforman el Presupuesto General del Estado.",0,0]
["MINFIN-003-01-04 ","Actualización del Catálogo General de Administración de Fondos para entidades del sector público no financiero",0,0]
["MINFIN-006-01-01","Autorización para emisión y colocación de títulos - valores internacionales de entidades públicas fuera del Presupuesto General del Estado.",0,0]
["MINFIN-008-01-02","Autorización para la creación, modificación, emisión o eliminación de especies fiscales de las instituciones del Presupuesto General del Estado.",0,0]
["MEF-020-05-01","Disolución de la personería jurídica de las organizaciones sociales",0,0]
["MEF-019-02-03 ","Emisión de dictamen de no afectación presupuestaria para instrumentos administrativos de las entidades del Resto del Sector Público",0,0]
["MEF-019-02-02","Emisión de dictamen sobre disponibilidad de recursos financieros para empresas públicas y gobiernos autónomos descentralizados",0,0]
["MINFIN-018-01-01","Implantación de las herramientas transaccionales del Sistema Integrado de las Finanzas Públicas en entidades fuera del Presupuesto General del Estado.",0,0]
["MEF-020-02-01","Inclusión y/o exclusión de miembros de las organizaciones sociales.",0,0]
["MEF-020-01-01","Reconocimiento de directiva de las organizaciones sociales",0,0]
["MEF-020-03-01","Reconocimiento de la persona jurídica y estatuto de las organizaciones sociales.",0,0]
["MEF-020-04-01","Reformas del estatuto de las organizaciones sociales",0,0]
["MINFIN-015-01-03","Solicitud de Información de Gestión del Sistema Nacional de las Finanzas Públicas, automatizada a través de las herramientas de gestión administrativa financiera",0,0]
["MEF-005-02-01","Taller presencial para el uso de las herramientas informáticas de las Finanzas Públicas dirigido a servidores públicos que trabajen en las entidades que conforman el Presupuesto General del Estado.",0,0]
["MINFIN-003-01-01","Actualización del Plan de Cuentas Contables para entidades del sector público no financiero",{"$f":"0+1+0+0+0+0+0+0+0+0+0","v":1},3]
["MINFIN-009-02-01 ","Extinción de deuda entre entidades del Sector Público.",1,3]
["MINFIN-013-03-03","Autorización de cierre de cuentas monetarias por cierre de Entidad que no pertenecen al Presupuesto General del Estado.",2,3]
["MINFIN-013-01-04","Autorización de apertura de cuentas de fondos de terceros para las instituciones del sector público, exceptuando las de la seguridad social.",3,3]
["MINFIN-012-01-01","Otorgamiento de garantía soberana a instituciones fuera del Presupuesto General del Estado",4,3]
["MINFIN-003-01-06 ","Actualización del Catálogo de Retenciones y descuentos a beneficiarios para entidades del sector público no financiero",7,3]
["MINFIN-013-01-05","Autorización de apertura de cuentas de Fideicomiso para las instituciones del sector público, financieras públicas, exceptuando los de la seguridad social.",7,3]
["MINFIN-013-01-06","Autorización de apertura de cuentas en el exterior o por excepción para las instituciones del sector público no financiero, exceptuando las de la seguridad social.",7,3]
["MINFIN-007-01-01","Autorización para contratación de endeudamiento público para las instituciones fuera del Presupuesto General del Estado.",7,3]
["MINFIN-004-02-01","Actualización del Clasificador presupuestario de ingresos y egresos (gastos) del Sector Público",10,3]
["MINFIN-009-01-01","Autorización de fideicomisos públicos.",10,3]
["MINFIN-010-01-01","Autorización para inversiones financieras de entidades del Sector Público no Financiero",10,3]
["MINFIN-002-01-04","Asignación de equipos biométricos a funcionarios autorizadores de pagos de las entidades del Sector Público.",{"$f":"0+1+1+0+2+3+8+3+2+2+2","v":24},3]
["MINFIN-013-02-01","Autorización de actualización de la denominación de las cuentas de las instituciones del sector público, exceptuando las de la seguridad social. ",24,3]
["MINFIN-017-01-01","Habilitación de la opción para la carga de contratos de obras y/o servicios de años anteriores para las entidades del Presupuesto General del Estado y Empresas Públicas que reciben transferencias del Presupuesto General del Estado",25,3]
["MINFIN-005-01-01","Capacitación virtual para el uso de las herramientas informáticas de las Finanzas Públicas dirigido a servidores públicos que trabajen en las entidades que conforman el Presupuesto General del Estado.",29,3]
["MINFIN-002-01-08","Reposición de un nuevo equipo biométrico (dongle y/o lector) en caso de pérdida, robo, hurto y/o daño por parte de los funcionarios autorizadores de pagos de las entidades del Sector Público.",{"$f":"0+0+2+2+6+12+1+2+2+2+2+3","v":34},6]
["MINFIN-003-01-05 ","Actualización del Catálogo General de asientos tipo para entidades del sector público no financiero",35,6]
["MINFIN-013-03-02","Autorización de cierre de cuentas monetarias por cierre de entidad que pertenecen al Presupuesto General del Estado.",35,6]
["MINFIN-002-01-07","Desactivación o baja del computador registrado para autorización de pagos mediante el uso del equipo biométrico por pérdida, robo o daño.",{"$f":"3+2+3+2+5+7+2+6+4+4+4","v":42},6]
["MINFIN-013-01-03","Autorización de apertura de cuentas de crédito para las instituciones del sector público, exceptuando los de la seguridad social.",44,6]
["MINFIN-001-01-03","Creación de usuarios especiales de consulta para entidades de control",{"$f":"0+2+3+3+4+0+12+6+6+6+6","v":48},6]
["MINFIN-013-03-01","Autorización de cierre de cuentas monetarias por terminación del objeto de la cuenta correspondiente a entidades del sector público exceptuando las de la seguridad social.",55,6]
["MINFIN-008-01-01","Autorización para la creación, modificación o eliminación de tasas de las instituciones del Presupuesto General del Estado",55,6]
["MEF-019-02-01","Emisión de dictamen presupuestario de las entidades del Presupuesto General del Estado",59,6]
["MINFIN-002-01-06","Devolución del equipo biométrico por fusión, absorción, cambio de denominación, cambio de modelo de gestión administrativa financiera o cierre de las entidades del Sector Público.",{"$f":"1+1+0+0+0+2+29+15+6+6+6","v":66},6]
["MINFIN-015-01-02","Información publicada sobre las finanzas públicas",86,6]
["MINFIN-002-01-02","Actualización de funcionarios autorizadores de pagos de las Entidades del Sector Público en el Sistema Biométrico de pagos.",{"$f":"7+9+9+1+1+16+10+10+8+8+8","v":87},6]
["MINFIN-013-01-01","Autorización de apertura de cuentas operativas de las instituciones del sector público, exceptuando los de la seguridad social.",108,6]
["MINFIN-013-01-02","Autorización de apertura de cuentas de donación para las instituciones del sector público, exceptuando los de la seguridad social.",154,6]
["MINFIN-003-01-02","Actualización del Catálogo General de Bienes para las entidades del sector público no financiero",172,6]
["MINFIN-001-01-01","Creación de usuarios administradores financieros/informáticos de las Entidades del Sector Público no Financiero",{"$f":"31+25+17+11+20+6+20+20+18+18+18","v":204},6]
["MEF-019-01-01","Emisión de certificaciones presupuestarias anuales y/o plurianuales de la entidades del Presupuesto General del Estado.",297,10]
["MINFIN-002-01-01","Enrolamiento en el Sistema Biométrico de pagos para funcionarios autorizadores de pagos de las entidades del Sector Público.",{"$f":"50+39+19+28+24+32+22+24+3+30+30","v":301},10]
["MINFIN-001-01-02","Creación de usuarios de Gobiernos Autónomos Descentralizados y Empresas Públicas.",{"$f":"50+58+47+20+36+7+41+29+36+36+32","v":392},10]
["MINFIN-001-02-01","Reseteo y Activación de Contraseñas",{"$f":"48+26+38+33+40+24+50+25+36+36+36","v":392},10]
["MINFIN-003-01-03","Actualización del Catálogo General de Existencias para el sector público no financiero",405,10]
["MINFIN-009-03-01","Validación de fondos",491,10]
["MINFIN-015-01-01 ","Solicitud oficial sobre entrega de información de las finanzas públicas",546,10]
["MINFIN-004-01-01","Actualización del catálogo de instituciones y entidades operativas desconcentradas del Sector Público No Financiero",637,10]
["MINFIN-002-01-03","Desactivación y activación de funcionarios autorizadores de pagos de las entidades del Sector Público enrolados por ausencia temporal o permanente.",{"$f":"154+129+105+44+52+78+80+78+90+90+90","v":990},10]
["MINFIN-011-01-01","Habilitación de registros contables para las entidades que transaccionan en el sistema e-SIGEF a nivel nacional.",2906,10]
["MEF-016-02-01","Asistencia técnica, conceptual y normativa de las Finanzas Públicas a través del canal telefónico.",4247,10]
["MINFIN-016-01-01","Asistencia técnica, conceptual y normativa de las Finanzas Públicas de forma presencial.",9875,10]
["MEF-016-03-01","Asistencia técnica, conceptual y normativa de las Finanzas Públicas mediante correo electrónico u oficio.",15865,10]
["MINFIN-014-03-01","Aprobación de modificaciones a los distributivos de remuneraciones mensuales unificadas institucionales, elaboradas por las entidades que forman parte del Presupuesto General del Estado",24025,10]
["MINFIN-014-02-01 ","Aprobación de reprogramaciones financieras elaboradas por las entidades que forman parte del Presupuesto General del Estado.",58792,10]
["MINFIN-014-01-01","Aprobación de modificaciones presupuestarias para las entidades que conforman el Presupuesto General del Estado",89121,10]

{"sheet":"VOLUMEN DE QUEJAS","index":2,"n_rows":66,"n_cols":6,"rows_kept":66,"cut":false,"hidden":false,"merged":[[0,0,0,5],[1,0,1,5]]}
["PRIORIZACIÓN DE TRÁMITES ADMINISTRATIVOS"]
["VOLUMEN DE QUEJAS"]
[]
["IDENTIFICADOR","TRÁMITE","VOLUMEN DEMANDA","VOLUMEN DE QUEJAS","PORCENTAJE","PUNTUACIÓN"]
["MINFIN-004-01-02","Actualización del catálogo de organismos y correlativos (préstamos/donaciones) para entidades que conforman el Presupuesto General del Estado.",0,0,0,0]
["MINFIN-003-01-04 ","Actualización del Catálogo General de Administración de Fondos para entidades del sector público no financiero",0,0,0,0]
["MINFIN-006-01-01","Autorización para emisión y colocación de títulos - valores internacionales de entidades públicas fuera del Presupuesto General del Estado.",0,0,0,0]
["MINFIN-008-01-02","Autorización para la creación, modificación, emisión o eliminación de especies fiscales de las instituciones del Presupuesto General del Estado.",0,0,0,0]
["MEF-020-05-01","Disolución de la personería jurídica de las organizaciones sociales",0,0,0,0]
["MEF-019-02-03 ","Emisión de dictamen de no afectación presupuestaria para instrumentos administrativos de las entidades del Resto del Sector Público",0,0,0,0]
["MEF-019-02-02","Emisión de dictamen sobre disponibilidad de recursos financieros para empresas públicas y gobiernos autónomos descentralizados",0,0,0,0]
["MINFIN-018-01-01","Implantación de las herramientas transaccionales del Sistema Integrado de las Finanzas Públicas en entidades fuera del Presupuesto General del Estado.",0,0,0,0]
["MEF-020-02-01","Inclusión y/o exclusión de miembros de las organizaciones sociales.",0,0,0,0]
["MEF-020-01-01","Reconocimiento de directiva de las organizaciones sociales",0,0,0,0]
["MEF-020-03-01","Reconocimiento de la persona jurídica y estatuto de las organizaciones sociales.",0,0,0,0]
["MEF-020-04-01","Reformas del estatuto de las organizaciones sociales",0,0,0,0]
["MINFIN-015-01-03","Solicitud de Información de Gestión del Sistema Nacional de las Finanzas Públicas, automatizada a través de las herramientas de gestión administrativa financiera",0,0,0,0]
["MEF-005-02-01","Taller presencial para el uso de las herramientas informáticas de las Finanzas Públicas dirigido a servidores públicos que trabajen en las entidades que conforman el Presupuesto General del Estado.",0,0,0,0]
["MINFIN-003-01-01","Actualización del Plan de Cuentas Contables para entidades del sector público no financiero",1,0,0,0]
["MINFIN-009-02-01 ","Extinción de deuda entre entidades del Sector Público.",1,0,0,0]
["MINFIN-013-03-03","Autorización de cierre de cuentas monetarias por cierre de Entidad que no pertenecen al Presupuesto General del Estado.",2,0,0,0]
["MINFIN-013-01-04","Autorización de apertura de cuentas de fondos de terceros para las instituciones del sector público, exceptuando las de la seguridad social.",3,0,0,0]
["MINFIN-012-01-01","Otorgamiento de garantía soberana a instituciones fuera del Presupuesto General del Estado",4,0,0,0]
["MINFIN-003-01-06 ","Actualización del Catálogo de Retenciones y descuentos a beneficiarios para entidades del sector público no financiero",7,0,0,0]
["MINFIN-013-01-05","Autorización de apertura de cuentas de Fideicomiso para las instituciones del sector público, financieras públicas, exceptuando los de la seguridad social.",7,0,0,0]
["MINFIN-013-01-06","Autorización de apertura de cuentas en el exterior o por excepción para las instituciones del sector público no financiero, exceptuando las de la seguridad social.",7,0,0,0]
["MINFIN-007-01-01","Autorización para contratación de endeudamiento público para las instituciones fuera del Presupuesto General del Estado.",7,0,0,0]
["MINFIN-004-02-01","Actualización del Clasificador presupuestario de ingresos y egresos (gastos) del Sector Público",10,0,0,0]
["MINFIN-009-01-01","Autorización de fideicomisos públicos.",10,0,0,0]
["MINFIN-010-01-01","Autorización para inversiones financieras de entidades del Sector Público no Financiero",10,0,0,0]
["MINFIN-002-01-04","Asignación de equipos biométricos a funcionarios autorizadores de pagos de las entidades del Sector Público.",24,0,0,0]
["MINFIN-013-02-01","Autorización de actualización de la denominación de las cuentas de las instituciones del sector público, exceptuando las de la seguridad social. ",24,0,0,0]
["MINFIN-017-01-01","Habilitación de la opción para la carga de contratos de obras y/o servicios de años anteriores para las entidades del Presupuesto General del Estado y Empresas Públicas que reciben transferencias del Presupuesto General del Estado",25,0,0,0]
["MINFIN-005-01-01","Capacitación virtual para el uso de las herramientas informáticas de las Finanzas Públicas dirigido a servidores públicos que trabajen en las entidades que conforman el Presupuesto General del Estado.",29,0,0,0]
["MINFIN-002-01-08","Reposición de un nuevo equipo biométrico (dongle y/o lector) en caso de pérdida, robo, hurto y/o daño por parte de los funcionarios autorizadores de pagos de las entidades del Sector Público.",34,0,0,0]
["MINFIN-003-01-05 ","Actualización del Catálogo General de asientos tipo para entidades del sector público no financiero",35,0,0,0]
["MINFIN-013-03-02","Autorización de cierre de cuentas monetarias por cierre de entidad que pertenecen al Presupuesto General del Estado.",35,0,0,0]
["MINFIN-002-01-07","Desactivación o baja del computador registrado para autorización de pagos mediante el uso del equipo biométrico por pérdida, robo o daño.",42,0,0,0]
["MINFIN-013-01-03","Autorización de apertura de cuentas de crédito para las instituciones del sector público, exceptuando los de la seguridad social.",44,0,0,0]
["MINFIN-001-01-03","Creación de usuarios especiales de consulta para entidades de control",48,0,0,0]
["MINFIN-013-03-01","Autorización de cierre de cuentas monetarias por terminación del objeto de la cuenta correspondiente a entidades del sector público exceptuando las de la seguridad social.",55,0,0,0]
["MINFIN-008-01-01","Autorización para la creación, modificación o eliminación de tasas de las instituciones del Presupuesto General del Estado",55,0,0,0]
["MEF-019-02-01","Emisión de dictamen presupuestario de las entidades del Presupuesto General del Estado",59,0,0,0]
["MINFIN-002-01-06","Devolución del equipo biométrico por fusión, absorción, cambio de denominación, cambio de modelo de gestión administrativa financiera o cierre de las entidades del Sector Público.",66,0,0,0]
["MINFIN-015-01-02","Información publicada sobre las finanzas públicas",86,0,0,0]
["MINFIN-002-01-02","Actualización de funcionarios autorizadores de pagos de las Entidades del Sector Público en el Sistema Biométrico de pagos.",87,0,0,0]
["MINFIN-013-01-01","Autorización de apertura de cuentas operativas de las instituciones del sector público, exceptuando los de la seguridad social.",108,0,0,0]
["MINFIN-013-01-02","Autorización de apertura de cuentas de donación para las instituciones del sector público, exceptuando los de la seguridad social.",154,0,0,0]
["MINFIN-003-01-02","Actualización del Catálogo General de Bienes para las entidades del sector público no financiero",172,0,0,0]
["MINFIN-001-01-01","Creación de usuarios administradores financieros/informáticos de las Entidades del Sector Público no Financiero",204,0,0,0]
["MEF-019-01-01","Emisión de certificaciones presupuestarias anuales y/o plurianuales de la entidades del Presupuesto General del Estado.",297,0,0,0]
["MINFIN-002-01-01","Enrolamiento en el Sistema Biométrico de pagos para funcionarios autorizadores de pagos de las entidades del Sector Público.",301,0,0,0]
["MINFIN-001-01-02","Creación de usuarios de Gobiernos Autónomos Descentralizados y Empresas Públicas.",392,0,0,0]
["MINFIN-001-02-01","Reseteo y Activación de Contraseñas",392,0,0,0]
["MINFIN-003-01-03","Actualización del Catálogo General de Existencias para el sector público no financiero",405,0,0,0]
["MINFIN-009-03-01","Validación de fondos",491,0,0,0]
["MINFIN-015-01-01 ","Solicitud oficial sobre entrega de información de las finanzas públicas",546,0,0,0]
["MINFIN-004-01-01","Actualización del catálogo de instituciones y entidades operativas desconcentradas del Sector Público No Financiero",637,0,0,0]
["MINFIN-002-01-03","Desactivación y activación de funcionarios autorizadores de pagos de las entidades del Sector Público enrolados por ausencia temporal o permanente.",990,0,0,0]
["MINFIN-011-01-01","Habilitación de registros contables para las entidades que transaccionan en el sistema e-SIGEF a nivel nacional.",2906,0,0,0]
["MEF-016-02-01","Asistencia técnica, conceptual y normativa de las Finanzas Públicas a través del canal telefónico.",4247,0,0,0]
["MINFIN-016-01-01","Asistencia técnica, conceptual y normativa de las Finanzas Públicas de forma presencial.",9875,0,0,0]
["MEF-016-03-01","Asistencia técnica, conceptual y normativa de las Finanzas Públicas mediante correo electrónico u oficio.",15865,0,0,0]
["MINFIN-014-03-01","Aprobación de modificaciones a los distributivos de remuneraciones mensuales unificadas institucionales, elaboradas por las entidades que forman parte del Presupuesto General del Estado",24025,0,0,0]
["MINFIN-014-02-01 ","Aprobación de reprogramaciones financieras elaboradas por las entidades que forman parte del Presupuesto General del Estado.",58792,0,0,0]
["MINFIN-014-01-01","Aprobación de modificaciones presupuestarias para las entidades que conforman el Presupuesto General del Estado",89121,0,0,0]

{"sheet":"COSTO ADMINISTRACIÓN PÚBLICA","index":3,"n_rows":67,"n_cols":9,"rows_kept":67,"cut":false,"hidden":false,"merged":[[0,0,0,5],[1,0,1,5],[3,0,4,0],[3,1,4,1],[3,2,3,4],[3,5,4,5]]}
["PRIORIZACIÓN DE TRÁMITES ADMINISTRATIVOS"]
["COSTOS PARA LA ADMINISTRACIÓN PÚBLICA"]
[]
["IDENTIFICADOR","TRÁMITE","INSUMOS PARA COSTO",null,null,"COSTO PARA LA ADM. PÚBLICA",null,"SBU",400]
[null,null,"TIEMPO (HORAS)","COSTO PERSONAL","COSTO RECURSOS"]
["MINFIN-004-01-02","Actualización del catálogo de organismos y correlativos (préstamos/donaciones) para entidades que conforman el Presupuesto General del Estado.",3,{"$f":"C6*$I$4/160","v":7.5},4.7700000000000005,{"$f":"D6+E6","v":12.27}]
["MINFIN-003-01-04 ","Actualización del Catálogo General de Administración de Fondos para entidades del sector público no financiero",3,{"$f":"C7*$I$4/160","v":7.5},4.3724999999999996,{"$f":"D7+E7","v":11.872499999999999}]
["MINFIN-006-01-01","Autorización para emisión y colocación de títulos - valores internacionales de entidades públicas fuera del Presupuesto General del Estado.",3,7.5,3.9749999999999996,11.475]
["MINFIN-008-01-02","Autorización para la creación, modificación, emisión o eliminación de especies fiscales de las instituciones del Presupuesto General del Estado.",3,7.5,0.92749999999999988,8.4275000000000002]
["MEF-020-05-01","Disolución de la personería jurídica de las organizaciones sociales",0.2,0.5,0.31800000000000006,0.81800000000000006]
["MEF-019-02-03 ","Emisión de dictamen de no afectación presupuestaria para instrumentos administrativos de las entidades del Resto del Sector Público",2.75,6.875,7.3975,14.272500000000001]
["MEF-019-02-02","Emisión de dictamen sobre disponibilidad de recursos financieros para empresas públicas y gobiernos autónomos descentralizados",2.75,6.875,4.6475,11.522500000000001]
["MINFIN-018-01-01","Implantación de las herramientas transaccionales del Sistema Integrado de las Finanzas Públicas en entidades fuera del Presupuesto General del Estado.",2.75,6.875,4.6475,11.522500000000001]
["MEF-020-02-01","Inclusión y/o exclusión de miembros de las organizaciones sociales.",2.75,6.875,4.6475,11.522500000000001]
["MEF-020-01-01","Reconocimiento de directiva de las organizaciones sociales",2.75,6.875,2.7499999999999996,9.625]
["MEF-020-03-01","Reconocimiento de la persona jurídica y estatuto de las organizaciones sociales.",2.75,6.875,4.6475,11.522500000000001]
["MEF-020-04-01","Reformas del estatuto de las organizaciones sociales",176,440,5.6663333333333332,445.66633333333334]
["MINFIN-015-01-03","Solicitud de Información de Gestión del Sistema Nacional de las Finanzas Públicas, automatizada a través de las herramientas de gestión administrativa financiera",7,17.5,10.32,27.82]
["MEF-005-02-01","Taller presencial para el uso de las herramientas informáticas de las Finanzas Públicas dirigido a servidores públicos que trabajen en las entidades que conforman el Presupuesto General del Estado.",7,17.5,10.32,27.82]
["MINFIN-003-01-01","Actualización del Plan de Cuentas Contables para entidades del sector público no financiero",7,17.5,10.32,27.82]
["MINFIN-009-02-01 ","Extinción de deuda entre entidades del Sector Público.",7,17.5,10.32,27.82]
["MINFIN-013-03-03","Autorización de cierre de cuentas monetarias por cierre de Entidad que no pertenecen al Presupuesto General del Estado.",7,17.5,10.32,27.82]
["MINFIN-013-01-04","Autorización de apertura de cuentas de fondos de terceros para las instituciones del sector público, exceptuando las de la seguridad social.",9.5,23.75,10.32,34.07]
["MINFIN-012-01-01","Otorgamiento de garantía soberana a instituciones fuera del Presupuesto General del Estado",9.5,23.75,10.32,34.07]
["MINFIN-003-01-06 ","Actualización del Catálogo de Retenciones y descuentos a beneficiarios para entidades del sector público no financiero",9.5,23.75,10.32,34.07]
["MINFIN-013-01-05","Autorización de apertura de cuentas de Fideicomiso para las instituciones del sector público, financieras públicas, exceptuando los de la seguridad social.",17,42.5,10.32,52.82]
["MINFIN-013-01-06","Autorización de apertura de cuentas en el exterior o por excepción para las instituciones del sector público no financiero, exceptuando las de la seguridad social.",13,32.5,10.32,42.82]
["MINFIN-007-01-01","Autorización para contratación de endeudamiento público para las instituciones fuera del Presupuesto General del Estado.",460,1150,10.32,1160.32]
["MINFIN-004-02-01","Actualización del Clasificador presupuestario de ingresos y egresos (gastos) del Sector Público",460,1150,10.32,1160.32]
["MINFIN-009-01-01","Autorización de fideicomisos públicos.",80,200,10.32,210.32]
["MINFIN-010-01-01","Autorización para inversiones financieras de entidades del Sector Público no Financiero",80,200,83.2,283.2]
["MINFIN-002-01-04","Asignación de equipos biométricos a funcionarios autorizadores de pagos de las entidades del Sector Público.",600,1500,624,2124]
["MINFIN-013-02-01","Autorización de actualización de la denominación de las cuentas de las instituciones del sector público, exceptuando las de la seguridad social. ",24,60,2329.62,2389.62]
["MINFIN-017-01-01","Habilitación de la opción para la carga de contratos de obras y/o servicios de años anteriores para las entidades del Presupuesto General del Estado y Empresas Públicas que reciben transferencias del Presupuesto General del Estado",32,80,33.28,113.28]
["MINFIN-005-01-01","Capacitación virtual para el uso de las herramientas informáticas de las Finanzas Públicas dirigido a servidores públicos que trabajen en las entidades que conforman el Presupuesto General del Estado.",560,1400,582.4,1982.4]
["MINFIN-002-01-08","Reposición de un nuevo equipo biométrico (dongle y/o lector) en caso de pérdida, robo, hurto y/o daño por parte de los funcionarios autorizadores de pagos de las entidades del Sector Público.",2240,5600,24.96,5624.96]
["MINFIN-003-01-05 ","Actualización del Catálogo General de asientos tipo para entidades del sector público no financiero",800,2000,832,2832]
["MINFIN-013-03-02","Autorización de cierre de cuentas monetarias por cierre de entidad que pertenecen al Presupuesto General del Estado.",8767,21917.5,4.4400000000000004,21921.94]
["MINFIN-002-01-07","Desactivación o baja del computador registrado para autorización de pagos mediante el uso del equipo biométrico por pérdida, robo o daño.",8767,21917.5,4.4400000000000004,21921.94]
["MINFIN-013-01-03","Autorización de apertura de cuentas de crédito para las instituciones del sector público, exceptuando los de la seguridad social.",10750,26875,5.22,26880.22]
["MINFIN-001-01-03","Creación de usuarios especiales de consulta para entidades de control",9750,24375,4.53,24379.53]
["MINFIN-013-03-01","Autorización de cierre de cuentas monetarias por terminación del objeto de la cuenta correspondiente a entidades del sector público exceptuando las de la seguridad social.",8250,20625,593,21218]
["MINFIN-008-01-01","Autorización para la creación, modificación o eliminación de tasas de las instituciones del Presupuesto General del Estado",10750,26875,5.33,26880.33]
["MEF-019-02-01","Emisión de dictamen presupuestario de las entidades del Presupuesto General del Estado",41,102.5,5.5299999999999994,108.03]
["MINFIN-002-01-06","Devolución del equipo biométrico por fusión, absorción, cambio de denominación, cambio de modelo de gestión administrativa financiera o cierre de las entidades del Sector Público.",41,102.5,5.98,108.48]
["MINFIN-015-01-02","Información publicada sobre las finanzas públicas",41,102.5,5.59,108.09]
["MINFIN-002-01-02","Actualización de funcionarios autorizadores de pagos de las Entidades del Sector Público en el Sistema Biométrico de pagos.",41,102.5,6.1800000000000006,108.68]
["MINFIN-013-01-01","Autorización de apertura de cuentas operativas de las instituciones del sector público, exceptuando los de la seguridad social.",15,37.5,3.12,40.619999999999997]
["MINFIN-013-01-02","Autorización de apertura de cuentas de donación para las instituciones del sector público, exceptuando los de la seguridad social.",9,22.5,1.0399999999999998,23.54]
["MINFIN-003-01-02","Actualización del Catálogo General de Bienes para las entidades del sector público no financiero",15,37.5,3.12,40.619999999999997]
["MINFIN-001-01-01","Creación de usuarios administradores financieros/informáticos de las Entidades del Sector Público no Financiero",47,117.5,2.2799999999999998,119.78]
["MEF-019-01-01","Emisión de certificaciones presupuestarias anuales y/o plurianuales de la entidades del Presupuesto General del Estado.",0.5,1.25,0.44499999999999995,1.6949999999999998]
["MINFIN-002-01-01","Enrolamiento en el Sistema Biométrico de pagos para funcionarios autorizadores de pagos de las entidades del Sector Público.",0.66666666666666663,1.6666666666666665,0.51999999999999991,2.1866666666666665]
["MINFIN-001-01-02","Creación de usuarios de Gobiernos Autónomos Descentralizados y Empresas Públicas.",0.26666666666666666,0.66666666666666674,0.72799999999999998,1.3946666666666667]
["MINFIN-001-02-01","Reseteo y Activación de Contraseñas",0.28333333333333333,0.70833333333333326,0.72799999999999998,1.4363333333333332]
["MINFIN-003-01-03","Actualización del Catálogo General de Existencias para el sector público no financiero",0.75,1.875,1.1599999999999999,3.0350000000000001]
["MINFIN-009-03-01","Validación de fondos",1.83,4.5750000000000002,3.15,7.7249999999999996]
["MINFIN-015-01-01 ","Solicitud oficial sobre entrega de información de las finanzas públicas",4.25,10.625,1.79,12.414999999999999]
["MINFIN-004-01-01","Actualización del catálogo de instituciones y entidades operativas desconcentradas del Sector Público No Financiero",2,5,1.29,6.29]
["MINFIN-002-01-03","Desactivación y activación de funcionarios autorizadores de pagos de las entidades del Sector Público enrolados por ausencia temporal o permanente.",2,5,1.29,6.29]
["MINFIN-011-01-01","Habilitación de registros contables para las entidades que transaccionan en el sistema e-SIGEF a nivel nacional.",2,5,1.29,6.29]
["MEF-016-02-01","Asistencia técnica, conceptual y normativa de las Finanzas Públicas a través del canal telefónico.",2,5,1.29,6.29]
["MINFIN-016-01-01","Asistencia técnica, conceptual y normativa de las Finanzas Públicas de forma presencial.",2,5,1.49,6.49]
["MEF-016-03-01","Asistencia técnica, conceptual y normativa de las Finanzas Públicas mediante correo electrónico u oficio.",2,5,1.49,6.49]
["MINFIN-014-03-01","Aprobación de modificaciones a los distributivos de remuneraciones mensuales unificadas institucionales, elaboradas por las entidades que forman parte del Presupuesto General del Estado",1.67,4.1749999999999998,1.79,5.9649999999999999]
["MINFIN-014-02-01 ","Aprobación de reprogramaciones financieras elaboradas por las entidades que forman parte del Presupuesto General del Estado.",1.67,4.1749999999999998,1.79,5.9649999999999999]
["MINFIN-014-01-01","Aprobación de modificaciones presupuestarias para las entidades que conforman el Presupuesto General del Estado",1.67,4.1749999999999998,1.79,5.9649999999999999]

{"sheet":"RESUMEN DE COSTOS AP","index":4,"n_rows":66,"n_cols":4,"rows_kept":66,"cut":false,"hidden":false,"merged":[[0,0,0,5],[1,0,1,5]]}
["PRIORIZACIÓN DE TRÁMITES ADMINISTRATIVOS"]
["COSTOS PARA LA ADMINISTRACIÓN PÚBLICA"]
[]
["IDENTIFICADOR","TRÁMITE","COSTO PARA LA ADM. PÚBLICA","PUNTUACIÓN"]
["MEF-020-05-01","Disolución de la personería jurídica de las organizaciones sociales",0.81800000000000006,5]
["MINFIN-001-01-02","Creación de usuarios de Gobiernos Autónomos Descentralizados y Empresas Públicas.",1.3946666666666667,5]
["MINFIN-001-02-01","Reseteo y Activación de Contraseñas",1.4363333333333332,5]
["MEF-019-01-01","Emisión de certificaciones presupuestarias anuales y/o plurianuales de la entidades del Presupuesto General del Estado.",1.6949999999999998,5]
["MINFIN-002-01-01","Enrolamiento en el Sistema Biométrico de pagos para funcionarios autorizadores de pagos de las entidades del Sector Público.",2.1866666666666665,5]
["MINFIN-003-01-03","Actualización del Catálogo General de Existencias para el sector público no financiero",3.0350000000000001,5]
["MINFIN-014-03-01","Aprobación de modificaciones a los distributivos de remuneraciones mensuales unificadas institucionales, elaboradas por las entidades que forman parte del Presupuesto General del Estado",5.9649999999999999,5]
["MINFIN-014-01-01","Aprobación de modificaciones presupuestarias para las entidades que conforman el Presupuesto General del Estado",5.9649999999999999,5]
["MINFIN-014-02-01 ","Aprobación de reprogramaciones financieras elaboradas por las entidades que forman parte del Presupuesto General del Estado.",5.9649999999999999,5]
["MINFIN-004-01-01","Actualización del catálogo de instituciones y entidades operativas desconcentradas del Sector Público No Financiero",6.29,5]
["MEF-016-02-01","Asistencia técnica, conceptual y normativa de las Finanzas Públicas a través del canal telefónico.",6.29,5]
["MINFIN-002-01-03","Desactivación y activación de funcionarios autorizadores de pagos de las entidades del Sector Público enrolados por ausencia temporal o permanente.",6.29,5]
["MINFIN-011-01-01","Habilitación de registros contables para las entidades que transaccionan en el sistema e-SIGEF a nivel nacional.",6.29,5]
["MINFIN-016-01-01","Asistencia técnica, conceptual y normativa de las Finanzas Públicas de forma presencial.",6.49,5]
["MEF-016-03-01","Asistencia técnica, conceptual y normativa de las Finanzas Públicas mediante correo electrónico u oficio.",6.49,5]
["MINFIN-009-03-01","Validación de fondos",7.7249999999999996,5]
["MINFIN-008-01-02","Autorización para la creación, modificación, emisión o eliminación de especies fiscales de las instituciones del Presupuesto General del Estado.",8.4275000000000002,5]
["MEF-020-01-01","Reconocimiento de directiva de las organizaciones sociales",9.625,5]
["MINFIN-006-01-01","Autorización para emisión y colocación de títulos - valores internacionales de entidades públicas fuera del Presupuesto General del Estado.",11.475,5]
["MEF-019-02-02","Emisión de dictamen sobre disponibilidad de recursos financieros para empresas públicas y gobiernos autónomos descentralizados",11.522500000000001,5]
["MINFIN-018-01-01","Implantación de las herramientas transaccionales del Sistema Integrado de las Finanzas Públicas en entidades fuera del Presupuesto General del Estado.",11.522500000000001,5]
["MEF-020-02-01","Inclusión y/o exclusión de miembros de las organizaciones sociales.",11.522500000000001,5]
["MEF-020-03-01","Reconocimiento de la persona jurídica y estatuto de las organizaciones sociales.",11.522500000000001,5]
["MINFIN-003-01-04 ","Actualización del Catálogo General de Administración de Fondos para entidades del sector público no financiero",11.872499999999999,10]
["MINFIN-004-01-02","Actualización del catálogo de organismos y correlativos (préstamos/donaciones) para entidades que conforman el Presupuesto General del Estado.",12.27,10]
["MINFIN-015-01-01 ","Solicitud oficial sobre entrega de información de las finanzas públicas",12.414999999999999,10]
["MEF-019-02-03 ","Emisión de dictamen de no afectación presupuestaria para instrumentos administrativos de las entidades del Resto del Sector Público",14.272500000000001,10]
["MINFIN-013-01-02","Autorización de apertura de cuentas de donación para las instituciones del sector público, exceptuando los de la seguridad social.",23.54,10]
["MINFIN-003-01-01","Actualización del Plan de Cuentas Contables para entidades del sector público no financiero",27.82,10]
["MINFIN-013-03-03","Autorización de cierre de cuentas monetarias por cierre de Entidad que no pertenecen al Presupuesto General del Estado.",27.82,10]
["MINFIN-009-02-01 ","Extinción de deuda entre entidades del Sector Público.",27.82,10]
["MINFIN-015-01-03","Solicitud de Información de Gestión del Sistema Nacional de las Finanzas Públicas, automatizada a través de las herramientas de gestión administrativa financiera",27.82,10]
["MEF-005-02-01","Taller presencial para el uso de las herramientas informáticas de las Finanzas Públicas dirigido a servidores públicos que trabajen en las entidades que conforman el Presupuesto General del Estado.",27.82,10]
["MINFIN-003-01-06 ","Actualización del Catálogo de Retenciones y descuentos a beneficiarios para entidades del sector público no financiero",34.07,10]
["MINFIN-013-01-04","Autorización de apertura de cuentas de fondos de terceros para las instituciones del sector público, exceptuando las de la seguridad social.",34.07,10]
["MINFIN-012-01-01","Otorgamiento de garantía soberana a instituciones fuera del Presupuesto General del Estado",34.07,10]
["MINFIN-003-01-02","Actualización del Catálogo General de Bienes para las entidades del sector público no financiero",40.619999999999997,10]
["MINFIN-013-01-01","Autorización de apertura de cuentas operativas de las instituciones del sector público, exceptuando los de la seguridad social.",40.619999999999997,10]
["MINFIN-013-01-06","Autorización de apertura de cuentas en el exterior o por excepción para las instituciones del sector público no financiero, exceptuando las de la seguridad social.",42.82,10]
["MINFIN-013-01-05","Autorización de apertura de cuentas de Fideicomiso para las instituciones del sector público, financieras públicas, exceptuando los de la seguridad social.",52.82,10]
["MEF-019-02-01","Emisión de dictamen presupuestario de las entidades del Presupuesto General del Estado",108.03,20]
["MINFIN-015-01-02","Información publicada sobre las finanzas públicas",108.09,20]
["MINFIN-002-01-06","Devolución del equipo biométrico por fusión, absorción, cambio de denominación, cambio de modelo de gestión administrativa financiera o cierre de las entidades del Sector Público.",108.48,20]
["MINFIN-002-01-02","Actualización de funcionarios autorizadores de pagos de las Entidades del Sector Público en el Sistema Biométrico de pagos.",108.68,20]
["MINFIN-017-01-01","Habilitación de la opción para la carga de contratos de obras y/o servicios de años anteriores para las entidades del Presupuesto General del Estado y Empresas Públicas que reciben transferencias del Presupuesto General del Estado",113.28,20]
["MINFIN-001-01-01","Creación de usuarios administradores financieros/informáticos de las Entidades del Sector Público no Financiero",119.78,20]
["MINFIN-009-01-01","Autorización de fideicomisos públicos.",210.32,20]
["MINFIN-010-01-01","Autorización para inversiones financieras de entidades del Sector Público no Financiero",283.2,20]
["MEF-020-04-01","Reformas del estatuto de las organizaciones sociales",445.66633333333334,20]
["MINFIN-004-02-01","Actualización del Clasificador presupuestario de ingresos y egresos (gastos) del Sector Público",1160.32,20]
["MINFIN-007-01-01","Autorización para contratación de endeudamiento público para las instituciones fuera del Presupuesto General del Estado.",1160.32,20]
["MINFIN-005-01-01","Capacitación virtual para el uso de las herramientas informáticas de las Finanzas Públicas dirigido a servidores públicos que trabajen en las entidades que conforman el Presupuesto General del Estado.",1982.4,20]
["MINFIN-002-01-04","Asignación de equipos biométricos a funcionarios autorizadores de pagos de las entidades del Sector Público.",2124,20]
["MINFIN-013-02-01","Autorización de actualización de la denominación de las cuentas de las instituciones del sector público, exceptuando las de la seguridad social. ",2389.62,20]
["MINFIN-003-01-05 ","Actualización del Catálogo General de asientos tipo para entidades del sector público no financiero",2832,20]
["MINFIN-002-01-08","Reposición de un nuevo equipo biométrico (dongle y/o lector) en caso de pérdida, robo, hurto y/o daño por parte de los funcionarios autorizadores de pagos de las entidades del Sector Público.",5624.96,20]
["MINFIN-013-03-01","Autorización de cierre de cuentas monetarias por terminación del objeto de la cuenta correspondiente a entidades del sector público exceptuando las de la seguridad social.",21218,20]
["MINFIN-013-03-02","Autorización de cierre de cuentas monetarias por cierre de entidad que pertenecen al Presupuesto General del Estado.",21921.94,20]
["MINFIN-002-01-07","Desactivación o baja del computador registrado para autorización de pagos mediante el uso del equipo biométrico por pérdida, robo o daño.",21921.94,20]
["MINFIN-001-01-03","Creación de usuarios especiales de consulta para entidades de control",24379.53,20]
["MINFIN-013-01-03","Autorización de apertura de cuentas de crédito para las instituciones del sector público, exceptuando los de la seguridad social.",26880.22,20]
["MINFIN-008-01-01","Autorización para la creación, modificación o eliminación de tasas de las instituciones del Presupuesto General del Estado",26880.33,20]

{"sheet":"AUXILIAR COSTO ADMINISTRACIÓN","index":5,"n_rows":766,"n_cols":13,"rows_kept":766,"cut":false,"hidden":true,"merged":[[745,1,745,2],[756,1,756,2],[684,1,684,2],[693,1,693,2],[702,1,702,2],[713,1,713,2],[724,1,724,2],[640,1,640,2],[651,1,651,2],[662,1,662,2],[673,1,673,2],[734,1,734,2],[603,1,603,2],[603,6,603,7],[615,1,615,2],[615,6,615,7],[628,1,628,2],[628,6,628,7],[567,1,567,2],[567,6,567,7],[579,1,579,2],[579,6,579,7],[591,1,591,2],[591,6,591,7],[537,1,537,2],[537,6,537,7],[546,1,546,2],[546,6,546,7],[556,1,556,2],[556,6,556,7],[506,1,506,2],[506,6,506,7],[516,1,516,2],[516,6,516,7],[527,1,527,2],[527,6,527,7],[363,1,363,2],[444,1,444,2],[468,1,468,2],[492,1,492,2],[374,1,374,2],[387,1,387,2],[400,1,400,2],[413,1,413,2],[429,1,429,2],[296,4,296,6],[319,1,319,2],[330,1,330,2],[341,1,341,2],[352,1,352,2],[274,4,274,6],[278,1,278,2],[267,1,267,2],[285,4,285,6],[289,1,289,2],[160,1,160,2],[93,1,93,2],[252,4,252,6],[256,1,256,2],[263,4,263,6],[245,1,245,2],[93,4,93,5],[101,1,101,2],[115,1,115,2],[129,1,129,2],[241,4,241,6],[151,1,151,2],[180,1,180,2],[204,1,204,2],[234,1,234,2],[1,4,1,5],[16,1,16,2],[16,4,16,5],[26,1,26,2],[26,4,26,5],[1,1,1,2],[37,1,37,2],[37,4,37,5],[47,1,47,2],[47,4,47,5],[57,1,57,2],[57,4,57,5],[66,4,66,5],[75,1,75,2],[75,4,75,5],[84,4,84,5],[84,1,84,2],[66,1,66,2]]}
[]
["TRÁMITE:","Implantación de las herramientas transaccionales del Sistema Integrado de las Finanzas Públicas en entidades fuera del Presupuesto General del Estado.",null,null,"COSTO DE RECURSOS POR HORA "]
["NO.","ACTIVIDAD","TIEMPO (HORAS)",null,"Uso de internet",0.5]
[1,"Recibir y revisar información de requisitos",{"$f":"20/60","v":0.33333333333333331},null,"Tarifa de luz",0.09]
[2,"preparar respuesta ",{"$f":"20/60","v":0.33333333333333331},null,"Uso de computador",0.5]
[3,"Revisar información",1,null,"Uso de Software",0.2]
[4,"Elaborar respuesta de factibilidad",{"$f":"30/60","v":0.5},null,"impresiónes",0.5]
[5,"Analizar factibilidad de implantación",1,null,"Total",{"$f":"SUM(F3:F7)","v":1.7899999999999998}]
[6,"Revisar información requerida",{"$f":"20/60","v":0.33333333333333331}]
[7,"Remitir retroalimentación de información",{"$f":"20/60","v":0.33333333333333331}]
[8,"Notificar creación de usuarios",{"$f":"10/60","v":0.16666666666666666}]
[9,"Validar información ingresada",{"$f":"15/60","v":0.25}]
[null,"SUMATORIA ACTIVIDADES",{"$f":"SUM(C4:C12)","v":4.25}]
[]
[]
[]
["TRÁMITE:","Emisión de certificaciones presupuestarias anuales y/o plurianuales de la entidades del Presupuesto General del Estado.",null,null,"COSTO DE RECURSOS POR HORA"]
["NO.","ACTIVIDAD","TIEMPO (HORAS)",null,"Uso de internet",0.5]
[1,"Recibir y revisar información de requisitos",{"$f":"20/60","v":0.33333333333333331},null,"Tarifa de luz",0.09]
[2,"preparar respuesta de información",{"$f":"20/60","v":0.33333333333333331},null,"Uso de computador",0.5]
[3,"Analizar información habilitante",1,null,"Uso de Software",0.2]
[4,"Preparar y entregar respuesta de certificación",{"$f":"20/60","v":0.33333333333333331},null,"Total",{"$f":"SUM(F18:F21)","v":1.2899999999999998}]
[null,"SUMATORIA ACTIVIDADES",{"$f":"SUM(C19:C22)","v":1.9999999999999998}]
[]
[]
[]
["TRÁMITE:","Emisión de dictamen presupuestario de las entidades del Presupuesto General del Estado",null,null,"COSTO DE RECURSOS POR HORA"]
["NO.","ACTIVIDAD","TIEMPO (HORAS)",null,"Uso de internet",0.5]
[1,"Recibir y revisar información de requisitos",{"$f":"20/60","v":0.33333333333333331},null,"Tarifa de luz",0.09]
[2,"preparar respuesta de información",{"$f":"20/60","v":0.33333333333333331},null,"Uso de computador",0.5]
[3,"Analizar información habilitante",1,null,"Uso de Software",0.2]
[4,"Preparar y entregar respuesta de dictamen",{"$f":"20/60","v":0.33333333333333331},null,"Total",{"$f":"SUM(F28:F31)","v":1.2899999999999998}]
[5,"SUMATORIA ACTIVIDADES",{"$f":"SUM(C29:C32)","v":1.9999999999999998}]
[]
[]
[]
[]
["TRÁMITE:","Emisión de dictamen sobre disponibilidad de recursos financieros para empresas públicas y gobiernos autónomos descentralizados",null,null,"COSTO DE RECURSOS POR HORA"]
["NO.","ACTIVIDAD","TIEMPO (HORAS)",null,"Uso de internet",0.5]
[1,"Recibir y revisar información de requisitos",{"$f":"20/60","v":0.33333333333333331},null,"Tarifa de luz",0.09]
[2,"preparar respuesta de información",{"$f":"20/60","v":0.33333333333333331},null,"Uso de computador",0.5]
[3,"Analizar información habilitante",1,null,"Uso de Software",0.2]
[4,"Preparar y entregar respuesta de dictamen",{"$f":"20/60","v":0.33333333333333331},null,"Total",{"$f":"SUM(F39:F42)","v":1.2899999999999998}]
[null,"SUMATORIA ACTIVIDADES",{"$f":"SUM(C40:C43)","v":1.9999999999999998}]
[]
[]
[]
["TRÁMITE:","Emisión de dictamen de no afectación presupuestaria para instrumentos administrativos de las entidades del Resto del Sector Público",null,null,"COSTO DE RECURSOS POR HORA"]
["NO.","ACTIVIDAD","TIEMPO (HORAS)",null,"Uso de internet",0.5]
[1,"Recibir y revisar información de requisitos",{"$f":"20/60","v":0.33333333333333331},null,"Tarifa de luz",0.09]
[2,"preparar respuesta de información",{"$f":"20/60","v":0.33333333333333331},null,"Uso de computador",0.5]
[3,"Analizar información habilitante",1,null,"Uso de Software",0.2]
[4,"Preparar y entregar respuesta de dictamen",{"$f":"20/60","v":0.33333333333333331},null,"Total",{"$f":"SUM(F49:F52)","v":1.2899999999999998}]
[null,"SUMATORIA ACTIVIDADES",{"$f":"SUM(C50:C53)","v":1.9999999999999998}]
[]
[]
[]
["TRÁMITE:","Reconocimiento de directiva de las organizaciones sociales",null,null,"COSTO DE RECURSOS POR HORA"]
["NO.","ACTIVIDAD","TIEMPO (HORAS)",null,"Uso de internet",0.5]
[1,"Recibir y revisar información ",{"$f":"20/60","v":0.33333333333333331},null,"Tarifa de luz",0.09]
[2,"Preparar y enviar documento de inicio del trámite",{"$f":"20/60","v":0.33333333333333331},null,"Uso de computador",0.5]
[3," Analizar legalidad de información ",1,null,"Uso de Software",0.2]
[4,"Preparar y enviar respuesta",{"$f":"20/60","v":0.33333333333333331},null,"impresiones",0.2]
[null,"SUMATORIA ACTIVIDADES",{"$f":"SUM(C60:C63)","v":1.9999999999999998},null,"Total",{"$f":"SUM(F59:F63)","v":1.4899999999999998}]
[]
[]
["TRAMITE","Inclusión y/o exclusión de miembros de las organizaciones sociales.",null,null,"COSTO DE RECURSOS POR HORA"]
["NO.","ACTIVIDAD","TIEMPO (HORAS)",null,"Uso de internet",0.5]
[1,"Recibir y revisar información ",{"$f":"20/60","v":0.33333333333333331},null,"Tarifa de luz",0.09]
[2,"Preparar y enviar documento de inicio del trámite",{"$f":"20/60","v":0.33333333333333331},null,"Uso de computador",0.2]
[3," Analizar legalidad de información ",1,null,"Uso de Software",0.2]
[4,"Preparar y enviar respuesta",{"$f":"20/60","v":0.33333333333333331},null,"impresiones",0.5]
[null,"SUMATORIA ACTIVIDADES",{"$f":"SUM(C69:C72)","v":1.9999999999999998},null,"Total",{"$f":"SUM(F68:F72)","v":1.49}]
[]
[]
["TRAMITE:","Reconocimiento de la persona jurídica y estatuto de las organizaciones sociales.",null,null,"COSTO DE RECURSOS POR HORA"]
["NO.","ACTIVIDAD","TIEMPO (HORAS)",null,"Uso de internet",0.5]
[1,"Recibir y revisar información ",{"$f":"20/60","v":0.33333333333333331},null,"Tarifa de luz",0.09]
[2,"Analizar el proyecto del Estatuto",1,null,"Uso de computador",0.5]
[3,"Preparar y enviar respuesta",{"$f":"20/60","v":0.33333333333333331},null,"Uso de Software",0.2]
[null,"SUMATORIA ACTIVIDADES",{"$f":"SUM(C78:C80)","v":1.6666666666666665},null,"impresiones",0.5]
[null,null,null,null,"Total",{"$f":"SUM(F77:F81)","v":1.7899999999999998}]
[]
[]
["TRAMITE:","Reformas del estatuto de las organizaciones sociales",null,null,"COSTO DE RECURSOS POR HORA"]
["NO.","ACTIVIDAD","TIEMPO (HORAS)",null,"Uso de internet",0.5]
[1,"Recibir y revisar información ",{"$f":"20/60","v":0.33333333333333331},null,"Tarifa de luz",0.09]
[2,"Analizar las reformas al estatuto",1,null,"Uso de computador",0.5]
[3,"Preparar y enviar respuesta",{"$f":"20/60","v":0.33333333333333331},null,"Uso de Software",0.2]
[null,"SUMATORIA ACTIVIDADES",{"$f":"SUM(C87:C89)","v":1.6666666666666665},null,"impresiones",0.5]
[null,null,null,null,"Total",{"$f":"SUM(F86:F90)","v":1.7899999999999998}]
[]
[]
["TRAMITE:","Disolución de la personería jurídica de las organizaciones sociales",null,null,"COSTO DE RECURSOS POR HORA "]
["NO.","ACTIVIDAD","TIEMPO (HORAS)",null,"Uso de internet",0.5]
[1,"Recibir y revisar información ",{"$f":"20/60","v":0.33333333333333331},null,"Tarifa de luz",0.09]
[2,"Analizar la legalidad del acta de disolución",1,null,"Uso de computador",0.5]
[3,"Preparar y enviar respuesta",{"$f":"20/60","v":0.33333333333333331},null,"Uso de Software",0.2]
[null,"SUMATORIA ACTIVIDADES",{"$f":"SUM(C96:C98)","v":1.6666666666666665},null,"impresiones",0.5]
[null,null,null,null,"Total",{"$f":"SUM(F95:F99)","v":1.7899999999999998}]
[]
["TRÁMITE:","Autorización para la creación, modificación o eliminación de tasas de las instituciones del Presupuesto General del Estado"]
["NO.","ACTIVIDAD","TIEMPO (HORAS)"]
[1,"Comunicar a la entidad la normativa respectiva y documentos habilitantes.",4]
[2,"Revisar la información proporcionada por la/s entidad/es.",8]
[3,"Dar asesoría y emitir observaciones de los documentos revisados.",4]
[4,"Elaborar cuadro resumen y/o comparativo de precios.",10]
[5,"Elaborar cuadro de ingresos Fuente 002 y gastos totales.",10]
[6,"Elaborar cuadro de impacto presupuestario.",10]
[7,"Elaborar y aprobar informe técnico de fijación de precios.",28]
[8,"Elaborar, aprobar y remitir memorando a la Coordinación Jurídica solicitando pronunciamiento y elaboración de dictamen institucional.",4]
[9,"Verificar la emisión de oficio de dictamen institucional.",2]
[null,"SUMATORIA ACTIVIDADES",80]
[]
[]
["TRÁMITE:","Autorización para la creación, modificación, emisión o eliminación de especies fiscales de las instituciones del Presupuesto General del Estado."]
["NO.","ACTIVIDAD","TIEMPO (HORAS)"]
[1,"Comunicar a la entidad la normativa respectiva y documentos habilitantes.",4]
[2,"Revisar la información proporcionada por la/s entidad/es.",8]
[3,"Dar asesoría y emitir observaciones de los documentos revisados.",4]
[4,"Elaborar cuadro resumen y/o comparativo de precios.",10]
[5,"Elaborar cuadro de ingresos Fuente 002 y gastos totales.",10]
[6,"Elaborar cuadro de impacto presupuestario.",10]
[7,"Elaborar y aprobar informe técnico de fijación de precios.",28]
[8,"Elaborar, aprobar y remitir memorando a la Coordinación Jurídica solicitando pronunciamiento y elaboración de dictamen institucional.",4]
[9,"Verificar la emisión de oficio de dictamen institucional.",2]
[null,"SUMATORIA ACTIVIDADES",80]
[]
[]
["TRÁMITE:","Autorización de fideicomisos públicos."]
["NO.","ACTIVIDAD","TIEMPO (HORAS)"]
[1,"Recibir, revisar y reasignar el requerimiento relacionado a las autorizaciones de fideicomisos.",2]
[2,"Analizar el requerimiento y el anexo adjunto de ser necesario",80]
[3,"Enviar a la entidad correspondiente el oficio de respuesta en el que se indica que el requerimiento no procede.",4]
[4,"Solicitar información adicional a la entidad requirente del Sector Público No Financiero.",8]
[5,"Enviar memorando de solicitud de análisis de sostenibilidad financiera.",4]
[6,"Revisar y remitir el memorando de solicitud de análisis de sostenibilidad financiera.",8]
[7,"Analizar la información recibida para el análisis de sostenibilidad financiera.",80]
[8,"Realizar el de sostenibilidad financiera de acuerdo a la Entidad fuera del PGE requirente",30]
[9,"Aprobar el de sostenibilidad financiera de acuerdo a la Entidad fuera del PGE requirente",80]
[10,"Enviar el informe técnico de fideicomiso a la Coordinación General Jurídica.",80]
[11,"Enviar el informe técnico de fideicomiso a la Coordinación General Jurídica.",8]
[12,"Realizar análisis jurídico y clasificación del requerimiento.",8]
[13,"Revisar y analizar los documentos de soporte que permitan elaborar los informes.",80]
[14,"Subsumir el hecho con la norma legal.(búsqueda de norma aplicable al caso).",40]
[15,"Elaborar proyecto de informe jurídico para fidecomisos",40]
[16,"Enviar el documento de autorización o no de fideicomisos a el/la Ministro/a de Economía y Finanzas.",40]
[17,"Enviar el documento de autorización o no de fideicomiso a la entidad requirente del Sector Público No Financiero.",8]
[null,"SUMATORIA ACTIVIDADES",600]
[]
[]
["TRÁMITE:","Validación de fondos"]
["NO.","ACTIVIDAD","TIEMPO (HORAS)"]
[1,"Recibir el requerimiento.",4]
[2,"Revisar la documentación.",16]
[3,"Revisar en el sistema la parametrización.",4]
[4,"Validar el fondo en el sistema",8]
[null,"SUMATORIA ACTIVIDADES",32]
[]
[]
["TRÁMITE:","Autorización de fideicomisos públicos."]
["NO.","ACTIVIDAD","TIEMPO (HORAS)"]
[1,"Solicitar a la SCG las cuentas contables a ser parametrizadas en el módulo de extinción de deudas, a través de memorando de las instituciones que utilicen la herramienta oficial financiera",8]
[2,"Preparar y remitir las cuentas contables a ser parametrizadas",80,null,null,null,null,null,null,null,null,{"$f":"8*20*18","v":2880},"Tiempo - ficha del servicio"]
[3,"Calificar la participación de las entidades y organismos del sector público",26,null,null,null,null,null,null,null,null,{"$f":"8*80","v":640},"Tiempo - administrado (preparación de documentación)"]
[4,"Comunicar a las entidades que utilizan la herramienta informática para la administración de los recursos públicos la obligación de intervenir en el sistema de extinción de deudas",8,null,null,null,null,null,null,null,null,{"$f":"+L164-L165","v":2240}]
[5,"Determinar en los EEFF las deudas reciprocas con otras entidades del sector público que no realicen las transacciones a través de la herramienta oficial",640]
[6,"Comunicar a la STN el interés de acogerse a un proceso de extinción de deudas, adjuntando para el efecto el acta de conciliación de deudas y registros contables",8]
[7,"Abrir expediente de la entidad sobre el proceso de extinción de deudas",600]
[8,"Preparar memorando solicitando la certificación de subrogación de deuda a la Subsecretaría de Financiamiento Público",8]
[9,"Verificar que se refleje en los Estados Financieros, las cuentas contables a intervenir en el proceso de extinción de deudas",8]
[10,"Estructurar el proceso de extinción, detallando los participantes, montos a ser cruzados entre cada uno de ellos",300]
[11,"Solicitar la elaboración del convenio de extinción de deudas a la Coordinación General Jurídica, a través de memorando",8]
[12,"Coordinar la suscripción del convenio de extinción con las entidades intervinientes",500]
[13,"Recibir memorando informando la culminación del proceso",8]
[14,"Autorizar el cierre del expediente",8]
[15," Cerrar el expediente de extinción de deudas",30]
[null,"SUMATORIA ACTIVIDADES",{"$f":"SUM(C163:C177)","v":2240}]
[]
[]
["TRÁMITE:","Autorización para inversiones financieras de entidades del Sector Público no Financiero"]
["NO.","ACTIVIDAD","TIEMPO (HORAS)"]
[1,"Revisar y analizar el requerimiento institucional",20]
[2,"Elaborar el oficio de solicitud de documentación para la contratación de endeudamiento público",8]
[3,"Revisar y remitir el oficio de solicitud de documentación para la contratación del endeudamiento público a la Entidad fuera del PGE requirente",4]
[4,"Elaborar el memorando de solicitud de análisis de capacidad de pago de la Entidad requirente",8]
[5,"Revisar y remitir el memorando de solicitud de análisis de capacidad de pago",4]
[6,"Analizar la información recibida para el análisis de capacidad de pago.",20]
[7,"Realizar el análisis de capacidad de pago de acuerdo a la Entidad fuera del PGE requirente",80]
[8,"Aprobar el análisis de capacidad de pago de acuerdo a la Entidad fuera del PGE requirente",20]
[9,"Analizar la documentación",80]
[10,"Elaborar y remitir el memorando de solicitud de pronunciamiento legal del contrato del crédito",8]
[11,"Elaborar el informe que contiene los términos y condiciones financieras del crédito ( se anexa el memorando dirigido a la Coordinación General Jurídica cuando el monto del crédito es menor al 0,15% del PGE o el oficio de convocatoria al Comité de Deuda y Financiamiento (cuando el monto del crédito es mayor al 0,15% del PGE)",80]
[12,"Solicitar la elaboración de la Resolución Ministerial a la Coordinación General Jurídica (cuando el monto del crédito es menor al 0,15% del PGE) o suscribir el oficio de convocatoria del Comité de Deuda y Financiamiento (cuando el monto del crédito es mayor al 0,15% del PGE)",8]
[13,"Suscribir la Resolución emitida por el/la Ministro/a de Economía y Finanzas o Acta Resolutiva emitida por el Comité de Deuda y Financiamiento, dependiendo el monto del crédito (en caso de que se autorice la contratación del crédito)",180]
[14,"Elaborar y remitir el oficio de comunicación de aprobación de la contratación del crédito",8]
[15,"Registrar el contrato del crédito en el Libro de Deuda Pública de la Subsecretaría del Crédito",8]
[16,"Archivar el expediente del contrato del crédito (en caso de que no se autorice la contratación)",8]
[17,"Elaborar y remitir el oficio de comunicación de no autorización de la contratación del crédito",8]
[18,"Elaborar y remitir el oficio de comunicación de no autorización de la contratación del crédito",8]
[]
[null,"SUMATORIA ACTIVIDADES",560]
[]
[]
["TRÁMITE:","Otorgamiento de garantia soberana"]
["NO.","ACTIVIDAD","TIEMPO (HORAS)"]
[1,"Reasignar la solicitud de garantía soberana",1]
[2,"Elaborar y remitir el memorando de solicitud de análisis de capacidad de pago",8]
[3,"Recibir el memorando del resultado de análisis de capacidad de pago",4]
[4,"Analizar la información recibida para el análisis de capacidad de pago.",10]
[5,"Realizar el análisis de capacidad de pago de acuerdo a la Entidad fuera del PGE requirente",60]
[6,"Aprobar el análisis de capacidad de pago de acuerdo a la Entidad fuera del PGE requirente",10]
[7,"Elaborar oficio indicando la capacidad de pago (favorable o desfavorable) y/o requerimiento de documentación para otorgar garantía",8]
[8,"Elaborar y remitir memorando de análisis legal del convenio de garantía, de autorización respecto al arbitraje internacional y ley gobernante enviado por la Procuraduría General del Estado y autorización del MEF sobre arbitraje internacional",8]
[9,"Ejecutar el proceso: Instrumentación de solicitudes dirigidas al Procurador General del Estado o el proceso: Participación y Asesoramiento en las Negociaciones de Endeudamiento Público Externo, de la Coordinación General Jurídica",160]
[10,"Elaborar informe para aprobación de garantía y solicitud de resolución para la Coordinación General Jurídica",120]
[11,"Aprobar emisión de garantía soberana",32]
[12,"Recibir resolución",4]
[13,"Elaborar y remitir el informe técnico de aprobación de garantía",50]
[14,"Revisar el informe y convocar al Comité de Deuda y Financiamiento",16]
[15,"Analizar la documentación e información respecto al convenio de crédito y garantía",16]
[16,"Revisar y enviar Acta Resolutiva al Prestamista a la entidad Prestataria",8]
[17,"Suscribir Convenios de Crédito y Garantía",8]
[18,"Gestionar las firmas para los Convenios de Crédito y Garantía",25]
[19,"Registrar en el Libro de Deuda Pública los Convenios de Garantía y Crédito suscritos",8]
[20,"Elaborar y remitir memorando de solicitud de opinión legal sobre lo actuado y elaboración de Convenio de restitución de valores",8]
[21,"Revisar opinión legal sobre lo actuado y Convenio de restitución de valores",180]
[22,"Suscribir el Convenio de restitución de valores",24]
[23,"Suscribir el Convenio de agencia fiscal",24]
[24,"Archivar el Expediente del otorgamiento de Garantía Soberana",8]
[]
[null,"SUMATORIA ACTIVIDADES",{"$f":"SUM(C207:C231)","v":800}]
[]
[]
["TRÁMITE:","Autorización de apertura de cuentas operativas de las instituciones del sector público, exceptuando los de la seguridad social.",null,null,"Recursos","Costo por hora","Uso de recursos por hora","Costo consumo por trámite"]
["NO.","ACTIVIDAD","TIEMPO (HORAS)",null,"Luz eléctrica (0,09 KW/hora)",0.09,6,0.54]
[1,"Entregar información de los requisitos para acceder al trámite.",0.33333333333333331,null,"Internet (0,50 centavos/hora)",0.5,3,1.5]
[2,"Recibir y revisar la documentación habilitante",1.6666666666666666E-2,null,"Uso de computador (0, 30 centavos / hora)",0.3,6,1.7999999999999998]
[3,"Analizar el requerimiento",3,null,"\nUso de software (0, 15 centavos /hora)",0.15,4,0.6]
[4,"Autorizar la apertura de cuentas de acuerdo con lo solicitado por el usuario.",4,null,"Impresiones (0,04 centavos x hoja)",0.04,0,0]
[5,"Elaborar oficio de autorización de apertura de cuentas de acuerdo con lo solicitado por el usuario.",1,null,"Copias (0,02 centavos x hoja)",0.02,0,0]
[6,"Remitir oficio de autorización de apertura de cuentas de acuerdo con lo solicitado por el usuario.",0.41666666666666669,null,"Total recursos",null,null,4.4399999999999995]
[null,"SUMATORIA ACTIVIDADES",8.7666666666666657]
[]
[]
["TRÁMITE:","Autorización de apertura de cuentas de donación para las instituciones del sector público, exceptuando los de la seguridad social.",null,null,"Recursos","Costo por hora","Uso de recursos por hora","Costo consumo por trámite"]
["NO.","ACTIVIDAD","TIEMPO (HORAS)",null,"Luz eléctrica (0,09 KW/hora)",0.09,6,0.54]
[1,"Entregar información de los requisitos para acceder al trámite.",0.33333333333333331,null,"Internet (0,50 centavos/hora)",0.5,3,1.5]
[2,"Recibir y revisar la documentación habilitante",1.6666666666666666E-2,null,"Uso de computador (0, 30 centavos / hora)",0.3,6,1.7999999999999998]
[3,"Analizar el requerimiento",3,null,"\nUso de software (0, 15 centavos /hora)",0.15,4,0.6]
[4,"Autorizar la apertura de cuentas de acuerdo con lo solicitado por el usuario.",4,null,"Impresiones (0,04 centavos x hoja)",0.04,0,0]
[5,"Elaborar oficio de autorización de apertura de cuentas de acuerdo con lo solicitado por el usuario.",1,null,"Copias (0,02 centavos x hoja)",0.02,0,0]
[6,"Remitir oficio de autorización de apertura de cuentas de acuerdo con lo solicitado por el usuario.",0.41666666666666669,null,"Total recursos",null,null,4.4399999999999995]
[null,"SUMATORIA ACTIVIDADES",8.7666666666666657]
[]
[]
["TRÁMITE:","Autorización de apertura de cuentas de crédito para las instituciones del sector público, exceptuando los de la seguridad social.",null,null,"Recursos","Costo por hora","Uso de recursos por hora","Costo consumo por trámite"]
["NO.","ACTIVIDAD","TIEMPO (HORAS)",null,"Luz eléctrica (0,09 KW/hora)",0.09,8,0.72]
[1,"Entregar información de los requisitos para acceder al trámite.",0.33333333333333331,null,"Internet (0,50 centavos/hora)",0.5,3,1.5]
[2,"Recibir y revisar la documentación habilitante",1,null,"Uso de computador (0, 30 centavos / hora)",0.3,8,2.4]
[3,"Analizar el requerimiento",4,null,"\nUso de software (0, 15 centavos /hora)",0.15,4,0.6]
[4,"Autorizar la apertura de cuentas de acuerdo con lo solicitado por el usuario.",4,null,"Impresiones (0,04 centavos x hoja)",0.04,0,0]
[5,"Elaborar oficio de autorización de apertura de cuentas de acuerdo con lo solicitado por el usuario.",1,null,"Copias (0,02 centavos x hoja)",0.02,0,0]
[6,"Remitir oficio de autorización de apertura de cuentas de acuerdo con lo solicitado por el usuario.",0.41666666666666669,null,"Total recursos",null,null,5.2199999999999989]
[null,"SUMATORIA ACTIVIDADES",10.749999999999998]
[]
[]
["TRÁMITE:","Autorización de apertura de cuentas de fondos de terceros para las instituciones del sector público, exceptuando las de la seguridad social.",null,null,"Recursos","Costo por hora","Uso de recursos por hora","Costo consumo por trámite"]
["NO.","ACTIVIDAD","TIEMPO (HORAS)",null,"Luz eléctrica (0,09 KW/hora)",0.09,7,0.63]
[1,"Entregar información de los requisitos para acceder al trámite.",0.33333333333333331,null,"Internet (0,50 centavos/hora)",0.5,3,1.5]
[2,"Recibir y revisar la documentación habilitante",1,null,"Uso de computador (0, 30 centavos / hora)",0.3,6,1.7999999999999998]
[3,"Analizar el requerimiento",3,null,"\nUso de software (0, 15 centavos /hora)",0.15,4,0.6]
[4,"Autorizar la apertura de cuentas de acuerdo con lo solicitado por el usuario.",4,null,"Impresiones (0,04 centavos x hoja)",0.04,0,0]
[5,"Elaborar oficio de autorización de apertura de cuentas de acuerdo con lo solicitado por el usuario.",1,null,"Copias (0,02 centavos x hoja)",0.02,0,0]
[6,"Remitir oficio de autorización de apertura de cuentas de acuerdo con lo solicitado por el usuario.",0.41666666666666669,null,"Total recursos",null,null,4.5299999999999994]
[null,"SUMATORIA ACTIVIDADES",9.7499999999999982]
[]
[]
["TRÁMITE:","Autorización de apertura de cuentas de Fideicomiso para las instituciones del sector público, financieras públicas, exceptuando los de la seguridad social.",null,null,"Recursos","Costo por hora","Uso de recursos por hora","Costo consumo por trámite"]
["NO.","ACTIVIDAD","TIEMPO (HORAS)",null,"Luz eléctrica (0,09 KW/hora)",0.09,7,0.63]
[1,"Entregar información de los requisitos para acceder al trámite.",0.25,null,"Internet (0,50 centavos/hora)",0.5,4,2]
[2,"Recibir y revisar la documentación habilitante",1,null,"Uso de computador (0, 30 centavos / hora)",0.3,10,3]
[3,"Analizar el requerimiento",3,null,"\nUso de software (0, 15 centavos /hora)",0.15,2,0.3]
[4,"Autorizar la apertura de cuentas de acuerdo con lo solicitado por el usuario.",3,null,"Impresiones (0,04 centavos x hoja)",0.04,0,0]
[5,"Elaborar oficio de autorización de apertura de cuentas de acuerdo con lo solicitado por el usuario.",0.75,null,"Copias (0,02 centavos x hoja)",0.02,0,0]
[6,"Remitir oficio de autorización de apertura de cuentas de acuerdo con lo solicitado por el usuario.",0.25,null,"Total recursos",null,null,5.93]
[null,"SUMATORIA ACTIVIDADES",8.25]
[]
[]
["TRÁMITE:","Autorización de apertura de cuentas en el exterior o por excepción para las instituciones del sector público no financiero, exceptuando las de la seguridad social.",null,null,"Recursos","Costo por hora","Uso de recursos por hora","Costo consumo por trámite"]
["NO.","ACTIVIDAD","TIEMPO (HORAS)",null,"Luz eléctrica (0,09 KW/hora)",0.09,7,0.63]
[1,"Entregar información de los requisitos para acceder al trámite.",0.33333333333333331,null,"Internet (0,50 centavos/hora)",0.5,4,2]
[2,"Recibir y revisar la documentación habilitante",1,null,"Uso de computador (0, 30 centavos / hora)",0.3,7,2.1]
[3,"Analizar el requerimiento",4,null,"\nUso de software (0, 15 centavos /hora)",0.15,4,0.6]
[4,"Autorizar la actualización de cuentas de acuerdo con lo solicitado por el usuario.",4,null,"Impresiones (0,04 centavos x hoja)",0.04,0,0]
[5,"Elaborar oficio de autorización de apertura de cuentas de acuerdo con lo solicitado por el usuario.",1,null,"Copias (0,02 centavos x hoja)",0.02,0,0]
[6,"Remitir oficio de autorización de apertura de cuentas de acuerdo con lo solicitado por el usuario.",0.41666666666666669,null,"Total recursos",null,null,5.33]
[null,"SUMATORIA ACTIVIDADES",10.749999999999998]
[]
[]
[null,"MINFIN-016-01-03"]
[1,"Receptar la información del requerimiento",{"$f":"5/60","v":8.3333333333333329E-2},null,"LUZ ELECTRICA",{"$f":"C306*0.09","v":6.7500000000000004E-2}]
[2,"Revisar información del requerimiento",{"$f":"20/60","v":0.33333333333333331},null,"COMPUTADOR ",{"$f":"C306*0.5","v":0.375}]
[3,"Elaborar respuesta al requerimiento",{"$f":"20/60","v":0.33333333333333331},null,"INTERNET",{"$f":"C306*0.5","v":0.375}]
[4,"Recibir la calificación de la atención",0,null,"USO DE SOFTWARE Esigef",{"$f":"C306*0.2","v":0.15000000000000002}]
[null,null,{"$f":"SUM(C302:C305)","v":0.75},null,"IMPRESIONES",{"$f":"5*0.04","v":0.2}]
[null,"MINFIN-017-01-01",null,null,null,{"$f":"SUM(F302:F306)","v":1.1675}]
[1,"Recibir información del requerimiento",{"$f":"5/60","v":8.3333333333333329E-2}]
[2,"Remitir información de documentos habilitantes",{"$f":"10/60","v":0.16666666666666666}]
[3,"Receptar documentos habilitantes",{"$f":"5/60","v":8.3333333333333329E-2},null,"LUZ ELECTRICA",{"$f":"C316*0.09","v":0.16499999999999998}]
[4,"Receptar la información del requerimiento",{"$f":"20/60","v":0.33333333333333331},null,"COMPUTADOR ",{"$f":"C316*0.5","v":0.91666666666666663}]
[5,"Registrar información en plantilla",{"$f":"20/60","v":0.33333333333333331},null,"INTERNET",{"$f":"C316*0.5","v":0.91666666666666663}]
[6,"Registrar información del contrato esigef",{"$f":"20/60","v":0.33333333333333331},null,"USO DE SOFTWARE Esigef",{"$f":"C316*0.5","v":0.91666666666666663}]
[7,"Suscribir el acta de finalización",{"$f":"20/60","v":0.33333333333333331},null,"IMPRESIONES",{"$f":"5*0.04","v":0.2}]
[8,"Entregar notificación de finalización del proceso",{"$f":"10/60","v":0.16666666666666666},null,null,{"$f":"SUM(F310:F314)","v":3.1149999999999998}]
[null,null,{"$f":"SUM(C308:C315)","v":1.8333333333333333}]
[]
[]
[]
["TRÁMITE:","Actualización del Catálogo General de Bienes para las entidades del sector público no financiero 003-01-02"]
["NO.","ACTIVIDAD","TIEMPO (HORAS)"]
[1,"Revisar la solicitud de creación ",1,null,null,"Insumos"]
[2,"Realizar análisis de la solicitud",2,null,null,"Luz electica",0.09,"hora"]
[3,"Actualizar el Registro del catálogo de bienes",2,null,null,"computador",0.5,"hora"]
[4,"Difundir por los canales de atención",1,null,null,"internet",0.5,"hora"]
[5,"Realizar el seguimiento ",1,null,null,"software",0.2,"hora"]
[null,"SUMATORIA ACTIVIDADES",7]
[]
[]
[]
["TRÁMITE:","Actualización del Catálogo General de Existencias para el sector público no financiero   003-01-03"]
["NO.","ACTIVIDAD","TIEMPO (HORAS)"]
[1,"Revisar la solicitud de creación ",1]
[2,"Realizar análisis de la solicitud",2]
[3,"Actualizar el Registro del catálogo de existencias",2]
[4,"Difundir por los canales de atención",1]
[5,"Realizar el seguimiento ",1]
[null,"SUMATORIA ACTIVIDADES",7]
[]
[]
[]
["TRÁMITE:","Actualización del Catálogo General de Administración de Fondos para entidades del sector público no financiero  003-01-04"]
["NO.","ACTIVIDAD","TIEMPO (HORAS)"]
[1,"Revisar solicitud de creación de fondo",1]
[2,"Realizar análisis de solicitud",2]
[3,"Actualizar el catálogo de fondos",2]
[4,"Elaborar Acuerdo",1]
[5,"Difundir Acuerdo",1]
[null,"SUMATORIA ACTIVIDADES",7]
[]
[]
[]
["TRÁMITE:","Actualización del Catálogo General de asientos tipo para entidades del sector público no financiero  003-01-05"]
["NO.","ACTIVIDAD","TIEMPO (HORAS)"]
[1,"Revisar solicitud de actualización",1]
[2,"Realizar análisis de solicitud",2]
[3,"Actualizar  el catálogo de asientos tipo para entidades",2]
[4,"Difundir por los medios respectivos",1]
[5,"Realizar seguimiento",1]
[null,"SUMATORIA ACTIVIDADES",7]
[]
[]
[]
["TRÁMITE:","Actualización del Catálogo de Retenciones y descuentos a beneficiarios para entidades del sector público no financiero  003-01-06"]
["NO.","ACTIVIDAD","TIEMPO (HORAS)"]
[1,"Revisar solicitud de actualización",1]
[2,"Realizar análisis de solicitud",2]
[3,"Actualizar el catálogo de retenciones y descuentos",2]
[4,"Difundir por los medios respectivos",1]
[5,"Realizar seguimiento",1]
[null,"SUMATORIA ACTIVIDADES",7]
[]
[]
[]
["TRÁMITE:","Actualización del catálogo de instituciones y entidades operativas desconcentradas del Sector Público No Financiero 004-01-01"]
["NO.","ACTIVIDAD","TIEMPO (HORAS)"]
[1,"Recibir solicitud ",0.5]
[2,"Analizar solicitud de actualización",2]
[3,"Coordinar reuniones de trabajo",1]
[4,"Analizar información con documentos habilitantes",2]
[5,"Elaborar informe técnico",1]
[6,"Actualizar el catálogo de instituciones y entidades operativas desconcentradas",2]
[7,"Elaborar oficio de respuesta",1]
[null,"SUMATORIA ACTIVIDADES",9.5]
[]
[]
[]
["TRÁMITE:","Actualización del catálogo de organismos y correlativos (préstamos/donaciones) para entidades que conforman el Presupuesto General del Estado 004-01-02"]
["NO.","ACTIVIDAD","TIEMPO (HORAS)"]
[1,"Recibir solicitud ",0.5]
[2,"Analizar solicitud de actualización",2]
[3,"Coordinar reuniones de trabajo",1]
[4,"Analizar información con documentos habilitantes",2]
[5,"Elaborar informe técnico",1]
[6,"Actualizar el catálogo de organismos y correlativos",2]
[7,"Elaborar oficio de respuesta",1]
[null,"SUMATORIA ACTIVIDADES",9.5]
[]
[]
[]
["TRÁMITE:","Actualización del Clasificador presupuestario de ingresos y egresos (gastos) del Sector Público 004-02-01"]
["NO.","ACTIVIDAD","TIEMPO (HORAS)"]
[1,"Recibir solicitud ",0.5]
[2,"Analizar solicitud de actualización",2]
[3,"Coordinar reuniones de trabajo",1]
[4,"Analizar información con documentos habilitantes",2]
[5,"Elaborar informe técnico",1]
[6,"Actualizar el clasificador presupuestario de ingresos y egresos",2]
[7,"Elaborar oficio de respuesta",1]
[null,"SUMATORIA ACTIVIDADES",9.5]
[]
[]
[]
["TRÁMITE:","Capacitación virtual para el uso de las herramientas informáticas de las Finanzas Públicas dirigido a servidores públicos que trabajen en las entidades que conforman el Presupuesto General del Estado 005-01-01"]
["NO.","ACTIVIDAD","TIEMPO (HORAS)"]
[1,"Recibir requerimientos de capacitación ",1]
[2,"Desarrollar el plan de cursos o módulos",1]
[3,"Promocionar la oferta de cursos",1]
[4,"Efectuar las inscripciones",1]
[5,"Realizar carga de requisitos",1]
[6,"Desarrollar matrículas y notificaciones",1]
[7,"Ejecutar el curso",8]
[8,"Realizar encuestas de satisfacción",1]
[9,"Entregar certificados",1]
[10,"Generar informe ",1]
[null,"SUMATORIA ACTIVIDADES",17]
[]
[]
[]
["TRÁMITE:","Taller presencial para el uso de las herramientas informáticas de las Finanzas Públicas dirigido a servidores públicos que trabajen en las entidades que conforman el Presupuesto General del Estado 005-02-01"]
["NO.","ACTIVIDAD","TIEMPO (HORAS)"]
[1,"Recibir requerimientos de capacitación ",1]
[2,"Desarrollar el plan de cursos o módulos",1]
[3,"Promocionar la oferta de cursos",1]
[4,"Desarrollar las inscripción",1]
[5,"Realizar carga de requisitos",1]
[6,"Desarrollar matrículas y notificaciones",1]
[7,"Ejecutar el curso",4]
[8,"Realizar encuestas de satisfacción",1]
[9,"Entregar certificados",1]
[10,"Generar informe ",1]
[null,"SUMATORIA ACTIVIDADES",13]
[]
[]
["TRÁMITE:","Autorización para emisión y colocación de títulos - valores internacionales de entidades públicas fuera del Presupuesto General del Estado."]
["NO.","ACTIVIDAD","TIEMPO (HORAS)"]
[1,"Revisar y analizar el requerimiento institucional",20]
[2,"Elaborar el oficio de solicitud de documentación para la contratación de endeudamiento público",8]
[3,"Revisar y remitir el oficio de solicitud de documentación a la entidad ",4]
[4,"Elaborar el memorando de solicitud de análisis de capacidad de pago de la Entidad requirente",8]
[5,"Revisar y remitir el memorando de solicitud de análisis de capacidad de pago",4]
[6,"Analizar la información recibida para el análisis de capacidad de pago.",20]
[7,"Realizar el análisis de capacidad de pago de acuerdo a la Entidad fuera del PGE requirente",80]
[8,"Aprobar el análisis de capacidad de pago de acuerdo a la Entidad fuera del PGE requirente",20]
[9,"Analizar la documentación",80]
[10,"Elaborar y remitir el memorando de solicitud de pronunciamiento legal del contrato del crédito",8]
[11,"Elaborar el informe que contiene los términos y condiciones financieras del crédito ",80]
[12,"Solicitar la elaboración de la Resolución Ministerial ",8]
[13,"Suscribir la Resolución emitida por el/la Ministro/a de Economía y Finanzas o Acta Resolutiva emitida por el Comité de Deuda y Financiamiento.",80]
[14,"Elaborar y remitir el oficio de comunicación de aprobación de la contratación del crédito",8]
[15,"Registrar el contrato del crédito en el Libro de Deuda Pública de la Subsecretaría del Crédito",8]
[16,"Archivar el expediente del contrato del crédito (en caso de que no se autorice la contratación)",8]
[17,"Elaborar y remitir el oficio de comunicación de no autorización de la contratación del crédito",8]
[18,"Elaborar y remitir el oficio de comunicación de no autorización de la contratación del crédito",8]
[null,"SUMATORIA ACTIVIDADES",460]
[]
[]
[]
["TRÁMITE:","Autorización para contratación de endeudamiento público para las instituciones fuera del Presupuesto General del Estado."]
["NO.","ACTIVIDAD","TIEMPO (HORAS)"]
[1,"Revisar y analizar el requerimiento institucional",20]
[2,"Elaborar el oficio de solicitud de documentación para la contratación de endeudamiento público",8]
[3,"Revisar y remitir el oficio de solicitud de documentación para la contratación de endeudamiento público",4]
[4,"Elaborar el memorando de solicitud de análisis de capacidad de pago de la Entidad requirente",8]
[5,"Revisar y remitir el memorando de solicitud de análisis de capacidad de pago",4]
[6,"Analizar la información recibida para el análisis de capacidad de pago.",20]
[7,"Realizar el análisis de capacidad de pago de acuerdo a la Entidad fuera del PGE requirente",80]
[8,"Aprobar el análisis de capacidad de pago de acuerdo a la Entidad fuera del PGE requirente",20]
[9,"Analizar la documentación",80]
[10,"Elaborar y remitir el memorando de solicitud de pronunciamiento legal del contrato del crédito",8]
[11,"Elaborar el informe que contiene los términos y condiciones financieras del crédito ",80]
[12,"Solicitar la elaboración de la Resolución Ministerial ",8]
[13,"Suscribir la Resolución emitida por el/la Ministro/a de Economía y Finanzas o Acta Resolutiva emitida por el Comité de Deuda y Financiamiento",80]
[14,"Elaborar y remitir el oficio de comunicación de aprobación de la contratación del crédito",8]
[15,"Registrar el contrato del crédito en el Libro de Deuda Pública de la Subsecretaría del Crédito",8]
[null,"Archivar el expediente del contrato del crédito (en caso de que no se autorice la contratación)",8]
[null,"Elaborar y remitir el oficio de comunicación de no autorización de la contratación del crédito",8]
[null,"Elaborar y remitir el oficio de comunicación de no autorización de la contratación del crédito",8]
[null,"SUMATORIA ACTIVIDADES",460]
[]
[]
[]
["TRÁMITE:","Autorización para la creación, modificación o eliminación de tasas de las instituciones del Presupuesto General del Estado"]
["NO.","ACTIVIDAD","TIEMPO (HORAS)"]
[1,"Comunicar a la entidad la normativa respectiva y documentos habilitantes.",4]
[2,"Revisar la información proporcionada por la/s entidad/es.",8]
[3,"Dar asesoría y emitir observaciones de los documentos revisados.",4]
[4,"Elaborar cuadro resumen y/o comparativo de precios.",10]
[5,"Elaborar cuadro de ingresos Fuente 002 y gastos totales.",10]
[6,"Elaborar cuadro de impacto presupuestario.",10]
[7,"Elaborar y aprobar informe técnico de fijación de precios.",28]
[8,"Elaborar, aprobar y remitir memorando a la Coordinación Jurídica solicitando pronunciamiento y elaboración de dictamen institucional.",4]
[9,"Verificar la emisión de oficio de dictamen institucional.",2]
[null,"SUMATORIA ACTIVIDADES",80]
[]
[]
["TRÁMITE:","Creación de usuarios administradores financieros/informáticos de las Entidades del Sector Público no Financiero",null,null,null,null,"Costos de recursos por hora "]
["NO.","ACTIVIDAD","TIEMPO (HORAS)",null,null,null,"Uso de internet",0.5]
[1,"Revisar información",1,null,null,null,"Uso de computador",0.5]
[2,"Verificar información en el sistema",{"$f":"30/60","v":0.5},null,null,null,"Tarifa de luz",0.09]
[3,"Registras datos",{"$f":"30/60","v":0.5},null,null,null,"Uso de Software",0.5]
[4,"Configurar perfil de usuario",{"$f":"20/60","v":0.33333333333333331},null,null,null,"Total",{"$f":"SUM(H508:H511)","v":1.59},{"$f":"+H512*C515","v":4.7700000000000005}]
[5,"Activar perfil",{"$f":"30/60","v":0.5}]
[6,"Verificar activación",{"$f":"10/60","v":0.16666666666666666}]
[null,"SUMATORIA ACTIVIDADES",{"$f":"SUM(C509:C514)","v":3}]
[]
["TRÁMITE:","Creación de usuarios de Gobiernos Autónomos Descentralizados y Empresas Públicas.",null,null,null,null,"Costos de recursos por hora "]
["NO.","ACTIVIDAD","TIEMPO (HORAS)",null,null,null,"Uso de internet",0.5]
[1,"Revisar información",1,null,null,null,"Uso de computador",0.5]
[2,"Verificar información",{"$f":"20/60","v":0.33333333333333331},null,null,null,"Tarifa de luz",0.09]
[3,"Registras datos",{"$f":"20/60","v":0.33333333333333331},null,null,null,"Uso de Software",0.5]
[4,"Configurar perfil de usuario",{"$f":"20/60","v":0.33333333333333331},null,null,null,"Total",{"$f":"SUM(H518:H521)","v":1.59},{"$f":"+H522*C526","v":4.3724999999999996}]
[5,"Habilitar campos",{"$f":"20/60","v":0.33333333333333331}]
[6,"Activar perfil",{"$f":"10/60","v":0.16666666666666666}]
[7,"Verificar activación",{"$f":"15/60","v":0.25}]
[null,"SUMATORIA ACTIVIDADES",{"$f":"SUM(C519:C525)","v":2.7499999999999996}]
[]
["TRÁMITE:","Creación de usuarios especiales de consulta para entidades de control",null,null,null,null,"Costos de recursos por hora "]
["NO.","ACTIVIDAD","TIEMPO (HORAS)",null,null,null,"Uso de internet",0.5]
[1,"Revisar información",1,null,null,null,"Uso de computador",0.5]
[2,"Verificar información en el sistema",{"$f":"20/60","v":0.33333333333333331},null,null,null,"Tarifa de luz",0.09]
[3,"Registras datos",{"$f":"20/60","v":0.33333333333333331},null,null,null,"Uso de Software",0.5]
[4,"Configurar perfil de usuario",{"$f":"20/60","v":0.33333333333333331},null,null,null,"Total",{"$f":"SUM(H529:H532)","v":1.59},{"$f":"+H533*C536","v":3.9749999999999996}]
[5,"Activar perfil",{"$f":"20/60","v":0.33333333333333331}]
[6,"Verificar activación",{"$f":"10/60","v":0.16666666666666666}]
[null,"SUMATORIA ACTIVIDADES",{"$f":"SUM(C530:C535)","v":2.4999999999999996}]
[]
["TRÁMITE:","Reseteo y Activación de Contraseñas",null,null,null,null,"Costos de recursos por hora "]
["NO.","ACTIVIDAD","TIEMPO (HORAS)",null,null,null,"Uso de internet",0.5]
[1,"Revisar información",{"$f":"20/60","v":0.33333333333333331},null,null,null,"Uso de computador",0.5]
[2,"Verificar información en el sistema",{"$f":"5/60","v":8.3333333333333329E-2},null,null,null,"Tarifa de luz",0.09]
[3,"Reseteo de contraseña",{"$f":"5/60","v":8.3333333333333329E-2},null,null,null,"Uso de Software",0.5]
[4,"Enviar nueva contraseña",{"$f":"5/60","v":8.3333333333333329E-2},null,null,null,"Total",{"$f":"SUM(H539:H542)","v":1.59},{"$f":"+H543*C544","v":0.92749999999999988}]
[null,"SUMATORIA ACTIVIDADES",{"$f":"SUM(C540:C543)","v":0.58333333333333326}]
[]
[]
["TRÁMITE:","Enrolamiento en el Sistema Biométrico de pagos para funcionarios autorizadores de pagos de las entidades del Sector Público.",null,null,null,null,"Costos de recursos por hora "]
["NO.","ACTIVIDAD","TIEMPO (HORAS)",null,null,null,"Uso de internet",0.5]
[1,"Revisar y registra turno ",0.05]
[2,"Revisar y Verificar información",0.05,null,null,null,"Uso de computador",0.5]
[4,"Configurar perfil de usuario",0.05,null,null,null,"Tarifa de luz",0.09]
[6,"Registra huella y activiación ",0.05]
[7,null,null,null,null,null,"Uso de Software",0.5]
[null,"SUMATORIA ACTIVIDADES",{"$f":"SUM(C549:C553)","v":0.2},null,null,null,"Total",{"$f":"SUM(H548:H553)","v":1.59},{"$f":"+H554*C554","v":0.31800000000000006}]
[]
[]
[null,"Actualización de funcionarios autorizadores de pagos de las Entidades del Sector Público en el Sistema Biométrico de pagos.",null,null,null,null,"Costos de recursos por hora "]
["NO.","ACTIVIDAD","TIEMPO (HORAS)",null,null,null,"Uso de internet",0.5]
[1,"Revisar información",1,null,null,null,"Impresiones",0.1]
[2,"Verificar información",{"$f":"20/60","v":0.33333333333333331},null,null,null,"Uso de computador",0.5]
[3,"Registras datos",{"$f":"20/60","v":0.33333333333333331},null,null,null,"Tarifa de luz",0.09]
[4,"Configurar perfil de usuario",{"$f":"20/60","v":0.33333333333333331},null,null,null,"impresiones",1]
[5,"Habilitar campos",{"$f":"20/60","v":0.33333333333333331},null,null,null,"Uso de Software",0.5]
[6,"Activar perfil",{"$f":"10/60","v":0.16666666666666666},null,null,null,"Total",{"$f":"SUM(H558:H563)","v":2.6900000000000004},{"$f":"+H564*C566","v":7.3975}]
[7,"Verificar activación",{"$f":"15/60","v":0.25}]
[null,"SUMATORIA ACTIVIDADES",{"$f":"SUM(C559:C565)","v":2.7499999999999996}]
[]
[null,"Desactivación y activación de funcionarios autorizadores de pagos de las entidades del Sector Público enrolados por ausencia temporal o permanente.",null,null,null,null,"Costos de recursos por hora "]
["NO.","ACTIVIDAD","TIEMPO (HORAS)",null,null,null,"Uso de internet",0.5]
[1,"Revisar información",1,null,null,null,"Impresiones",0.1]
[2,"Verificar información",{"$f":"20/60","v":0.33333333333333331},null,null,null,"Uso de computador",0.5]
[3,"Registras datos",{"$f":"20/60","v":0.33333333333333331},null,null,null,"Tarifa de luz",0.09]
[4,"Configurar perfil de usuario",{"$f":"20/60","v":0.33333333333333331},null,null,null,"Uso de Software",0.5]
[5,"Habilitar campos",{"$f":"20/60","v":0.33333333333333331},null,null,null,"Total",{"$f":"SUM(H569:H573)","v":1.6900000000000002},{"$f":"+H574*C577","v":4.6475}]
[6,"Activar perfil",{"$f":"10/60","v":0.16666666666666666}]
[7,"Verificar activación",{"$f":"15/60","v":0.25}]
[null,"SUMATORIA ACTIVIDADES",{"$f":"SUM(C570:C576)","v":2.7499999999999996}]
[]
[]
[null,"Asignación de equipos biométricos a funcionarios autorizadores de pagos de las entidades del Sector Público",null,null,null,null,"Costos de recursos por hora "]
["NO.","ACTIVIDAD","TIEMPO (HORAS)",null,null,null,"Uso de internet",0.5]
[1,"Revisar información",1,null,null,null,"Impresiones",0.1]
[2,"Verificar información",{"$f":"20/60","v":0.33333333333333331},null,null,null,"Uso de computador",0.5]
[3,"Registras datos",{"$f":"20/60","v":0.33333333333333331},null,null,null,"Tarifa de luz",0.09]
[4,"Configurar perfil de usuario",{"$f":"20/60","v":0.33333333333333331},null,null,null,"Uso de Software",0.5]
[5,"Entregar equipos y actas de recepción ",{"$f":"20/60","v":0.33333333333333331},null,null,null,"Total",{"$f":"SUM(H581:H585)","v":1.6900000000000002},{"$f":"+H586*C589","v":4.6475}]
[6,"Activar perfil",{"$f":"10/60","v":0.16666666666666666}]
[7,"Verificar activación",{"$f":"15/60","v":0.25}]
[null,"SUMATORIA ACTIVIDADES",{"$f":"SUM(C582:C588)","v":2.7499999999999996}]
[]
[]
[null,"Devolución del equipo biométrico por fusión, absorción, cambio de denominación, cambio de modelo de gestión administrativa financiera o cierre de las entidades del Sector Público.",null,null,null,null,"Costos de recursos por hora "]
["NO.","ACTIVIDAD","TIEMPO (HORAS)",null,null,null,"Uso de internet",0.5]
[1,"Revisar información",1,null,null,null,"Impresiones",0.1]
[2,"Verificar información",{"$f":"20/60","v":0.33333333333333331},null,null,null,"Uso de computador",0.5]
[3,"Registras datos",{"$f":"20/60","v":0.33333333333333331},null,null,null,"Tarifa de luz",0.09]
[4,"Configurar perfil de usuario",{"$f":"20/60","v":0.33333333333333331},null,null,null,"Uso de Software",0.5]
[5,"Entregar equipos y actas de recepción ",{"$f":"20/60","v":0.33333333333333331},null,null,null,"Total",{"$f":"SUM(H593:H597)","v":1.6900000000000002},{"$f":"+H598*C601","v":4.6475}]
[6,"Activar perfil",{"$f":"10/60","v":0.16666666666666666}]
[7,"Verificar activación",{"$f":"15/60","v":0.25}]
[null,"SUMATORIA ACTIVIDADES",{"$f":"SUM(C594:C600)","v":2.7499999999999996}]
[]
[]
[null,"Desactivación o baja del computador registrado para autorización de pagos mediante el uso del equipo biométrico por pérdida, robo o daño.",null,null,null,null,"Costos de recursos por hora "]
["NO.","ACTIVIDAD","TIEMPO (HORAS)",null,null,null,"Uso de internet",0.5]
[1,"Revisar información",1,null,null,null,"Impresiones",0.1]
[2,"Verificar información",{"$f":"20/60","v":0.33333333333333331},null,null,null,"Uso de computador",0.5]
[3,"Registras datos",{"$f":"20/60","v":0.33333333333333331},null,null,null,"Tarifa de luz",0.09]
[4,"Configurar perfil de usuario",{"$f":"20/60","v":0.33333333333333331},null,null,null,"Uso de Software",0.5]
[5,"Entregar equipos y actas de recepción ",{"$f":"20/60","v":0.33333333333333331},null,null,null,"Total",{"$f":"SUM(H605:H609)","v":1.6900000000000002},{"$f":"+C613","v":2.7499999999999996}]
[6,"Activar perfil",{"$f":"10/60","v":0.16666666666666666}]
[7,"Verificar activación",{"$f":"15/60","v":0.25}]
[null,"SUMATORIA ACTIVIDADES",{"$f":"SUM(C606:C612)","v":2.7499999999999996}]
[]
[]
[null,"Reposición de un nuevo equipo biométrico (dongle y/o lector) en caso de pérdida, robo, hurto y/o daño por parte de los funcionarios autorizadores de pagos de las entidades del Sector Público.",null,null,null,null,"Costos de recursos por hora "]
["NO.","ACTIVIDAD","TIEMPO (HORAS)",null,null,null,"Uso de internet",0.5]
[1,"Revisar información",1,null,null,null,"Impresiones",0.1]
[2,"Verificar información",{"$f":"20/60","v":0.33333333333333331},null,null,null,"Uso de computador",0.5]
[3,"Registras datos",{"$f":"20/60","v":0.33333333333333331},null,null,null,"Tarifa de luz",0.09]
[4,"Configurar perfil de usuario",{"$f":"20/60","v":0.33333333333333331},null,null,null,"Uso de Software",0.5]
[5,"Entregar equipos y actas de recepción ",{"$f":"20/60","v":0.33333333333333331},null,null,null,"Total",{"$f":"SUM(H617:H621)","v":1.6900000000000002},{"$f":"+H622*C625","v":4.6475}]
[6,"Activar perfil",{"$f":"10/60","v":0.16666666666666666}]
[7,"Verificar activación",{"$f":"15/60","v":0.25}]
[null,"SUMATORIA ACTIVIDADES",{"$f":"SUM(C618:C624)","v":2.7499999999999996}]
[]
[]
[]
["TRÁMITE:","Actualización del Plan de Cuentas Contables para entidades del sector público no financiero 003-01-01",null,null,null,null,"Costos de recursos por hora "]
["NO.","ACTIVIDAD","TIEMPO (HORAS)",null,null,null,"Uso de internet",0.5]
[1,"Recibir registrar para el control ",{"$f":"15/60","v":0.25},null,null,null,"Impresiones",0.3]
[2,"Revisar si es procedente la solicitud",0.25,null,null,null,"copias",0.02]
[3,"Disponer la atención",0.25,null,null,null,"Uso de computador",0.5]
[4,"Revisar en las clases de registros existentes",1,null,null,null,"Tarifa de luz",0.09]
[5,"Actualización creación",1.05,null,null,null,"Uso de Software",0.5]
[6,"Entregar copias",{"$f":"10/60","v":0.16666666666666666},null,null,null,"Total",{"$f":"SUM(H630:H635)","v":1.9100000000000001},{"$f":"+H636*C638","v":5.6663333333333332}]
[]
[null,"SUMATORIA ACTIVIDADES",{"$f":"SUM(C631:C637)","v":2.9666666666666663}]
[]
[]
["TRÁMITE:","Autorización de actualización de la denominación de las cuentas de las instituciones del sector público, exceptuando las de la seguridad social. "]
["NO.","ACTIVIDAD","TIEMPO (HORAS)",null,"Recursos","Costo por hora","Uso de recursos por hora","Costo consumo por trámite"]
[1,"Entregar información de los requisitos para acceder al trámite.",2,null,"Luz eléctrica (0,09 KW/hora)",0.09,7,0.63]
[2,"Recibir y revisar la documentación habilitante",4,null,"Internet (0,50 centavos/hora)",0.5,5,2.5]
[3,"Analizar el requerimiento",10,null,"Uso de computador (0, 30 centavos / hora)",0.3,6,1.7999999999999998]
[4,"Autorizar la apertura de actualización de acuerdo con lo solicitado por el usuario.",8,null,"\nUso de software (0, 15 centavos /hora)",0.15,4,0.6]
[5,"Elaborar y revisar oficio de autorización de actualización de cuentas de acuerdo con lo solicitado por el usuario.",16,null,"Impresiones (0,04 centavos x hoja)",0.04,0,0]
[6,"Remitir oficio de autorización de actualización  de cuentas de acuerdo con lo solicitado por el usuario.",1,null,"Copias (0,02 centavos x hoja)",0.02,0,0]
[null,"SUMATORIA ACTIVIDADES",41,null,"Total recursos",null,null,5.5299999999999994]
[]
[]
["TRÁMITE:","Autorización de cierre de cuentas monetarias por terminación del objeto de la cuenta correspondiente a entidades del sector público exceptuando las de la seguridad social."]
["NO.","ACTIVIDAD","TIEMPO (HORAS)",null,"Recursos","Costo por hora","Uso de recursos por hora","Costo consumo por trámite"]
[1,"Entregar información de los requisitos para acceder al trámite.",2,null,"Luz eléctrica (0,09 KW/hora)",0.09,7,0.63]
[2,"Recibir y revisar la documentación habilitante",4,null,"Internet (0,50 centavos/hora)",0.5,5,2.5]
[3,"Analizar el requerimiento",10,null,"Uso de computador (0, 30 centavos / hora)",0.3,7,2.1]
[4,"Autorizar la apertura de cierre de acuerdo con lo solicitado por el usuario.",8,null,"\nUso de software (0, 15 centavos /hora)",0.15,5,0.75]
[5,"Elaborar oficio de autorización de cierre de cuentas de acuerdo con lo solicitado por el usuario.",16,null,"Impresiones (0,04 centavos x hoja)",0.04,0,0]
[6,"Remitir oficio de autorización de cierre  de cuentas de acuerdo con lo solicitado por el usuario.",1,null,"Copias (0,02 centavos x hoja)",0.02,0,0]
[null,"SUMATORIA ACTIVIDADES",41,null,"Total recursos",null,null,5.98]
[]
[]
["TRÁMITE:","Autorización de cierre de cuentas monetarias por cierre de entidad que pertenecen al Presupuesto General del Estado."]
["NO.","ACTIVIDAD","TIEMPO (HORAS)",null,"Recursos","Costo por hora","Uso de recursos por hora","Costo consumo por trámite"]
[1,"Entregar información de los requisitos para acceder al trámite.",2,null,"Luz eléctrica (0,09 KW/hora)",0.09,6,0.54]
[2,"Recibir y revisar la documentación habilitante",4,null,"Internet (0,50 centavos/hora)",0.5,5,2.5]
[3,"Analizar el requerimiento",10,null,"Uso de computador (0, 30 centavos / hora)",0.3,6,1.7999999999999998]
[4,"Autorizar la apertura de cierre de acuerdo con lo solicitado por el usuario.",8,null,"\nUso de software (0, 15 centavos /hora)",0.15,5,0.75]
[5,"Elaborar oficio de autorización de cierre de cuentas de acuerdo con lo solicitado por el usuario.",16,null,"Impresiones (0,04 centavos x hoja)",0.04,0,0]
[6,"Remitir oficio de autorización de cierre  de cuentas de acuerdo con lo solicitado por el usuario.",1,null,"Copias (0,02 centavos x hoja)",0.02,0,0]
[null,"SUMATORIA ACTIVIDADES",41,null,"Total recursos",null,null,5.59]
[]
[]
["TRÁMITE:","Autorización de cierre de cuentas monetarias por cierre de Entidad que no pertenecen al Presupuesto General del Estado."]
["NO.","ACTIVIDAD","TIEMPO (HORAS)",null,"Recursos","Costo por hora","Uso de recursos por hora","Costo consumo por trámite"]
[1,"Entregar información de los requisitos para acceder al trámite.",2,null,"Luz eléctrica (0,09 KW/hora)",0.09,7,0.63]
[2,"Recibir y revisar la documentación habilitante",4,null,"Internet (0,50 centavos/hora)",0.5,6,3]
[3,"Analizar el requerimiento",10,null,"Uso de computador (0, 30 centavos / hora)",0.3,7,2.1]
[4,"Autorizar la apertura de cierre de acuerdo con lo solicitado por el usuario.",8,null,"\nUso de software (0, 15 centavos /hora)",0.15,3,0.44999999999999996]
[5,"Elaborar oficio de autorización de cierre de cuentas de acuerdo con lo solicitado por el usuario.",16,null,"Impresiones (0,04 centavos x hoja)",0.04,0,0]
[6,"Remitir oficio de autorización de cierre  de cuentas de acuerdo con lo solicitado por el usuario.",1,null,"Copias (0,02 centavos x hoja)",0.02,0,0]
[null,"SUMATORIA ACTIVIDADES",41,null,"Total recursos",null,null,6.1800000000000006]
[]
[]
["TRÁMITE:","Aprobación de modificaciones presupuestarias para las entidades que conforman el Presupuesto General del Estado"]
["NO.","ACTIVIDAD","TIEMPO (HORAS)",null,"Recursos","Costo por hora","Uso de recursos por hora","Costo consumo por trámite"]
[1,"Receptar la información del requerimiento",1,null,"Luz eléctrica (0,09 KW/hora)",0.09,3,0.27]
[2,"Revisar la información del requerimiento",5,null,"Internet (0,50 centavos/hora)",0.5,3,1.5]
[3,"Analizar, preparar y enviar respuesta justificativos adicionales",8,null,"Uso de computador (0, 30 centavos / hora)",0.3,3,0.89999999999999991]
[4,"Comprobar la aprobación o rechazo de las modificaciones presupuestarias",1,null,"\nUso de software (0, 15 centavos /hora)",0.15,3,0.44999999999999996]
[null,"SUMATORIA ACTIVIDADES",15,null,"Impresiones (0,04 centavos x hoja)",0.04,0,0]
[null,null,null,null,"Copias (0,02 centavos x hoja)",0.02,0,0]
[]
["TRÁMITE:","Aprobación de reprogramaciones financieras elaboradas por las entidades que forman parte del Presupuesto General del Estado."]
["NO.","ACTIVIDAD","TIEMPO (HORAS)",null,"Recursos","Costo por hora","Uso de recursos por hora","Costo consumo por trámite"]
[1,"Receptar la información del requerimiento",1,null,"Luz eléctrica (0,09 KW/hora)",0.09,1,0.09]
[2,"Analizar el requerimiento",8,null,"Internet (0,50 centavos/hora)",0.5,1,0.5]
[3,"Realizar la aprobación o rechazo de las reprogramaciones financieras en la herramienta informática vigente",8,null,"Uso de computador (0, 30 centavos / hora)",0.3,1,0.3]
[null,"SUMATORIA ACTIVIDADES",9,null,"\nUso de software (0, 15 centavos /hora)",0.15,1,0.15]
[null,null,null,null,"Impresiones (0,04 centavos x hoja)",0.04,0,0]
[null,null,null,null,"Copias (0,02 centavos x hoja)",0.02,0,0]
[null,null,null,null,"Total recursos",null,null,1.0399999999999998]
["TRÁMITE:","Aprobación de modificaciones a los distributivos de remuneraciones mensuales unificadas institucionales, elaboradas por las entidades que forman parte del Presupuesto General del Estado"]
["NO.","ACTIVIDAD","TIEMPO (HORAS)"]
[1,"Receptar la información del requerimiento",1,null,"Recursos","Costo por hora","Uso de recursos por hora","Costo consumo por trámite"]
[2,"Revisar la información del requerimiento",5,null,"Luz eléctrica (0,09 KW/hora)",0.09,3,0.27]
[3,"Analizar, preparar y enviar respuesta justificativos adicionales",8,null,"Internet (0,50 centavos/hora)",0.5,3,1.5]
[4,"Comprobar la aprobación o rechazo de las modificaciones presupuestarias",1,null,"Uso de computador (0, 30 centavos / hora)",0.3,3,0.89999999999999991]
[null,"SUMATORIA ACTIVIDADES",15,null,"\nUso de software (0, 15 centavos /hora)",0.15,3,0.44999999999999996]
[null,null,null,null,"Impresiones (0,04 centavos x hoja)",0.04,0,0]
[null,null,null,null,"Copias (0,02 centavos x hoja)",0.02,0,0]
[null,null,null,null,"Total recursos",null,null,3.12]
[]
["TRÁMITE:","Solicitud oficial sobre entrega de información de las finanzas públicas"]
["NO.","ACTIVIDAD","TIEMPO (HORAS)"]
[1,"Receptar el requerimiento",1,null,"Recursos","Costo por hora","Uso de recursos por hora","Costo consumo por trámite"]
[2,"Analizar y revisar del requerimiento",6,null,"Luz eléctrica (0,09 KW/hora)",0.09,2,0.18]
[3,"Preparar y entregar la información ",40,null,"Internet (0,50 centavos/hora)",0.5,2,1]
[null,"SUMATORIA ACTIVIDADES",47,null,"Uso de computador (0, 30 centavos / hora)",0.3,2,0.6]
[null,null,null,null,"\nUso de software (0, 15 centavos /hora)",0.15,2,0.3]
[null,null,null,null,"Impresiones (0,04 centavos x hoja)",0.04,5,0.2]
[null,null,null,null,"Copias (0,02 centavos x hoja)",0.02,0,0]
[null,null,null,null,"Total recursos",null,null,2.2799999999999998]
[]
["TRÁMITE:","Información publicada sobre las finanzas públicas"]
["NO.","ACTIVIDAD","TIEMPO (HORAS)"]
[1,"Brindar acceso a la información web",0,null,"Recursos","Costo por hora","Uso de recursos por hora","Costo consumo por trámite"]
[2,"Entregar la información ",0.5,null,"Luz eléctrica (0,09 KW/hora)",0.09,0.5,4.4999999999999998E-2]
[null,"SUMATORIA ACTIVIDADES",0.5,null,"Internet (0,50 centavos/hora)",0.5,0.5,0.25]
[null,null,null,null,"Uso de computador (0, 30 centavos / hora)",0.3,0.5,0.15]
[null,null,null,null,"\nUso de software (0, 15 centavos /hora)",0.15,0,0]
[null,null,null,null,"Impresiones (0,04 centavos x hoja)",0.04,0,0]
[null,null,null,null,"Copias (0,02 centavos x hoja)",0.02,0,0]
[null,null,null,null,"Total recursos",null,null,0.44499999999999995]
["TRÁMITE:","Solicitud de Información de Gestión del Sistema Nacional de las Finanzas Públicas, automatizada a través de las herramientas de gestión administrativa financiera"]
[1,"ACTIVIDAD","TIEMPO (HORAS)"]
[2,"Brindar acceso a la información web",0.16666666666666666,null,"Recursos","Costo por hora","Uso de recursos por hora","Costo consumo por trámite"]
[null,"Entregar la información ",0.5,null,"Luz eléctrica (0,09 KW/hora)",0.09,0.5,4.4999999999999998E-2]
[null,"SUMATORIA ACTIVIDADES",0.66666666666666663,null,"Internet (0,50 centavos/hora)",0.5,0.5,0.25]
[null,null,null,null,"Uso de computador (0, 30 centavos / hora)",0.3,0.5,0.15]
[null,null,null,null,"\nUso de software (0, 15 centavos /hora)",0.15,0.5,7.4999999999999997E-2]
[null,null,null,null,"Impresiones (0,04 centavos x hoja)",0.04,0,0]
[null,null,null,null,"Copias (0,02 centavos x hoja)",0.02,0,0]
[null,null,null,null,"Total recursos",null,null,0.51999999999999991]
[]
["TRÁMITE:","Asistencia técnica, conceptual y normativa de las Finanzas Públicas de forma presencial."]
["NO.","ACTIVIDAD","TIEMPO (HORAS)"]
[1,"Receptar la información del requerimiento",3.3333333333333333E-2,null,"Recursos","Costo por hora","Uso de recursos por hora","Costo consumo por trámite"]
[2,"Revisar información del usuario",3.3333333333333333E-2,null,"Luz eléctrica (0,09 KW/hora)",0.09,0.7,6.3E-2]
[3,"Revisar información del requerimiento",3.3333333333333333E-2,null,"Internet (0,50 centavos/hora)",0.5,0.7,0.35]
[4,"Acceder al SINFIP y analizar el requerimiento",8.3333333333333329E-2,null,"Uso de computador (0, 30 centavos / hora)",0.3,0.7,0.21]
[5,"Elaborar respuesta al requerimiento",8.3333333333333329E-2,null,"\nUso de software (0, 15 centavos /hora)",0.15,0.7,0.105]
[6,"Recibir la calificación de la atención",0,null,"Impresiones (0,04 centavos x hoja)",0.04,0,0]
[null,"SUMATORIA ACTIVIDADES",0.26666666666666666,null,"Copias (0,02 centavos x hoja)",0.02,0,0]
[null,null,null,null,"Total recursos",null,null,0.72799999999999998]
[]
["TRÁMITE:","Asistencia técnica, conceptual y normativa de las Finanzas Públicas a través del canal telefónico."]
["NO.","ACTIVIDAD","TIEMPO (HORAS)"]
[1,"Atender llamada telefónica",3.3333333333333333E-2,null,"Recursos","Costo por hora","Uso de recursos por hora","Costo consumo por trámite"]
[2,"Revisar información del usuario",3.3333333333333333E-2,null,"Luz eléctrica (0,09 KW/hora)",0.09,0.7,6.3E-2]
[3,"Revisar información del requerimiento",0.05,null,"Internet (0,50 centavos/hora)",0.5,0.7,0.35]
[4,"Revisar documentos de soporte enviados por correo",8.3333333333333329E-2,null,"Uso de computador (0, 30 centavos / hora)",0.3,0.7,0.21]
[5,"Elaborar respuesta al requerimiento",8.3333333333333329E-2,null,"\nUso de software (0, 15 centavos /hora)",0.15,0.7,0.105]
[6,"Recibir la calificación de la atención",0,null,"Impresiones (0,04 centavos x hoja)",0.04,0,0]
[null,"SUMATORIA ACTIVIDADES",0.28333333333333333,null,"Copias (0,02 centavos x hoja)",0.02,0,0]
[null,null,null,null,"Total recursos",null,null,0.72799999999999998]

{"sheet":"TIEMPO DE RESPUESTA","index":6,"n_rows":66,"n_cols":4,"rows_kept":66,"cut":false,"hidden":false,"merged":[[0,0,0,3],[1,0,1,3]]}
["PRIORIZACIÓN DE TRÁMITES ADMINISTRATIVOS"]
["TIEMPO DE RESPUESTA"]
[]
["IDENTIFICADOR","TRÁMITE","TIEMPO RESPUESTA (horas laborables)","PUNTUACIÓN"]
["MINFIN-004-01-02","Actualización del catálogo de organismos y correlativos (préstamos/donaciones) para entidades que conforman el Presupuesto General del Estado.",16,0]
["MINFIN-003-01-04 ","Actualización del Catálogo General de Administración de Fondos para entidades del sector público no financiero",8,0]
["MINFIN-006-01-01","Autorización para emisión y colocación de títulos - valores internacionales de entidades públicas fuera del Presupuesto General del Estado.",720,30]
["MINFIN-008-01-02","Autorización para la creación, modificación, emisión o eliminación de especies fiscales de las instituciones del Presupuesto General del Estado.",160,30]
["MEF-020-05-01","Disolución de la personería jurídica de las organizaciones sociales",120,30]
["MEF-019-02-03 ","Emisión de dictamen de no afectación presupuestaria para instrumentos administrativos de las entidades del Resto del Sector Público",160,30]
["MEF-019-02-02","Emisión de dictamen sobre disponibilidad de recursos financieros para empresas públicas y gobiernos autónomos descentralizados",240,30]
["MINFIN-018-01-01","Implantación de las herramientas transaccionales del Sistema Integrado de las Finanzas Públicas en entidades fuera del Presupuesto General del Estado.",720,30]
["MEF-020-02-01","Inclusión y/o exclusión de miembros de las organizaciones sociales.",40,0]
["MEF-020-01-01","Reconocimiento de directiva de las organizaciones sociales",40,0]
["MEF-020-03-01","Reconocimiento de la persona jurídica y estatuto de las organizaciones sociales.",120,30]
["MEF-020-04-01","Reformas del estatuto de las organizaciones sociales",120,30]
["MINFIN-015-01-03","Solicitud de Información de Gestión del Sistema Nacional de las Finanzas Públicas, automatizada a través de las herramientas de gestión administrativa financiera",0.66666700000000001,0]
["MEF-005-02-01","Taller presencial para el uso de las herramientas informáticas de las Finanzas Públicas dirigido a servidores públicos que trabajen en las entidades que conforman el Presupuesto General del Estado.",48,30]
["MINFIN-003-01-01","Actualización del Plan de Cuentas Contables para entidades del sector público no financiero",240,30]
["MINFIN-009-02-01 ","Extinción de deuda entre entidades del Sector Público.",1920,30]
["MINFIN-013-03-03","Autorización de cierre de cuentas monetarias por cierre de Entidad que no pertenecen al Presupuesto General del Estado.",32,0]
["MINFIN-013-01-04","Autorización de apertura de cuentas de fondos de terceros para las instituciones del sector público, exceptuando las de la seguridad social.",56,30]
["MINFIN-012-01-01","Otorgamiento de garantía soberana a instituciones fuera del Presupuesto General del Estado",960,30]
["MINFIN-003-01-06 ","Actualización del Catálogo de Retenciones y descuentos a beneficiarios para entidades del sector público no financiero",24,0]
["MINFIN-013-01-05","Autorización de apertura de cuentas de Fideicomiso para las instituciones del sector público, financieras públicas, exceptuando los de la seguridad social.",56,30]
["MINFIN-013-01-06","Autorización de apertura de cuentas en el exterior o por excepción para las instituciones del sector público no financiero, exceptuando las de la seguridad social.",200,30]
["MINFIN-007-01-01","Autorización para contratación de endeudamiento público para las instituciones fuera del Presupuesto General del Estado.",960,30]
["MINFIN-004-02-01","Actualización del Clasificador presupuestario de ingresos y egresos (gastos) del Sector Público",320,30]
["MINFIN-009-01-01","Autorización de fideicomisos públicos.",720,30]
["MINFIN-010-01-01","Autorización para inversiones financieras de entidades del Sector Público no Financiero",160,30]
["MINFIN-002-01-04","Asignación de equipos biométricos a funcionarios autorizadores de pagos de las entidades del Sector Público.",8,0]
["MINFIN-013-02-01","Autorización de actualización de la denominación de las cuentas de las instituciones del sector público, exceptuando las de la seguridad social. ",56,30]
["MINFIN-017-01-01","Habilitación de la opción para la carga de contratos de obras y/o servicios de años anteriores para las entidades del Presupuesto General del Estado y Empresas Públicas que reciben transferencias del Presupuesto General del Estado",24,0]
["MINFIN-005-01-01","Capacitación virtual para el uso de las herramientas informáticas de las Finanzas Públicas dirigido a servidores públicos que trabajen en las entidades que conforman el Presupuesto General del Estado.",120,30]
["MINFIN-002-01-08","Reposición de un nuevo equipo biométrico (dongle y/o lector) en caso de pérdida, robo, hurto y/o daño por parte de los funcionarios autorizadores de pagos de las entidades del Sector Público.",8,0]
["MINFIN-003-01-05 ","Actualización del Catálogo General de asientos tipo para entidades del sector público no financiero",24,0]
["MINFIN-013-03-02","Autorización de cierre de cuentas monetarias por cierre de entidad que pertenecen al Presupuesto General del Estado.",56,30]
["MINFIN-002-01-07","Desactivación o baja del computador registrado para autorización de pagos mediante el uso del equipo biométrico por pérdida, robo o daño.",8,0]
["MINFIN-013-01-03","Autorización de apertura de cuentas de crédito para las instituciones del sector público, exceptuando los de la seguridad social.",120,30]
["MINFIN-001-01-03","Creación de usuarios especiales de consulta para entidades de control",8,0]
["MINFIN-013-03-01","Autorización de cierre de cuentas monetarias por terminación del objeto de la cuenta correspondiente a entidades del sector público exceptuando las de la seguridad social.",56,30]
["MINFIN-008-01-01","Autorización para la creación, modificación o eliminación de tasas de las instituciones del Presupuesto General del Estado",160,30]
["MEF-019-02-01","Emisión de dictamen presupuestario de las entidades del Presupuesto General del Estado",120,30]
["MINFIN-002-01-06","Devolución del equipo biométrico por fusión, absorción, cambio de denominación, cambio de modelo de gestión administrativa financiera o cierre de las entidades del Sector Público.",8,0]
["MINFIN-015-01-02","Información publicada sobre las finanzas públicas",0.5,0]
["MINFIN-002-01-02","Actualización de funcionarios autorizadores de pagos de las Entidades del Sector Público en el Sistema Biométrico de pagos.",8,0]
["MINFIN-013-01-01","Autorización de apertura de cuentas operativas de las instituciones del sector público, exceptuando los de la seguridad social.",56,30]
["MINFIN-013-01-02","Autorización de apertura de cuentas de donación para las instituciones del sector público, exceptuando los de la seguridad social.",56,30]
["MINFIN-003-01-02","Actualización del Catálogo General de Bienes para las entidades del sector público no financiero",48,30]
["MINFIN-001-01-01","Creación de usuarios administradores financieros/informáticos de las Entidades del Sector Público no Financiero",8,0]
["MEF-019-01-01","Emisión de certificaciones presupuestarias anuales y/o plurianuales de la entidades del Presupuesto General del Estado.",120,30]
["MINFIN-002-01-01","Enrolamiento en el Sistema Biométrico de pagos para funcionarios autorizadores de pagos de las entidades del Sector Público.",0.33,0]
["MINFIN-001-01-02","Creación de usuarios de Gobiernos Autónomos Descentralizados y Empresas Públicas.",8,0]
["MINFIN-001-02-01","Reseteo y Activación de Contraseñas",8,0]
["MINFIN-003-01-03","Actualización del Catálogo General de Existencias para el sector público no financiero",48,30]
["MINFIN-009-03-01","Validación de fondos",40,0]
["MINFIN-015-01-01 ","Solicitud oficial sobre entrega de información de las finanzas públicas",120,30]
["MINFIN-004-01-01","Actualización del catálogo de instituciones y entidades operativas desconcentradas del Sector Público No Financiero",24,0]
["MINFIN-002-01-03","Desactivación y activación de funcionarios autorizadores de pagos de las entidades del Sector Público enrolados por ausencia temporal o permanente.",8,0]
["MINFIN-011-01-01","Habilitación de registros contables para las entidades que transaccionan en el sistema e-SIGEF a nivel nacional.",32,0]
["MEF-016-02-01","Asistencia técnica, conceptual y normativa de las Finanzas Públicas a través del canal telefónico.",0.28000000000000003,0]
["MINFIN-016-01-01","Asistencia técnica, conceptual y normativa de las Finanzas Públicas de forma presencial.",0.27,0]
["MEF-016-03-01","Asistencia técnica, conceptual y normativa de las Finanzas Públicas mediante correo electrónico u oficio.",48,30]
["MINFIN-014-03-01","Aprobación de modificaciones a los distributivos de remuneraciones mensuales unificadas institucionales, elaboradas por las entidades que forman parte del Presupuesto General del Estado",16,0]
["MINFIN-014-02-01 ","Aprobación de reprogramaciones financieras elaboradas por las entidades que forman parte del Presupuesto General del Estado.",24,0]
["MINFIN-014-01-01","Aprobación de modificaciones presupuestarias para las entidades que conforman el Presupuesto General del Estado",24,0]

{"sheet":"CANAL ATENCIÓN","index":7,"n_rows":66,"n_cols":12,"rows_kept":66,"cut":false,"hidden":false,"merged":[[0,0,0,3],[1,0,1,3]]}
["PRIORIZACIÓN DE TRÁMITES ADMINISTRATIVOS"]
["CANAL DE ATENCIÓN"]
[null,null,null,null,null,null,null,null,"Totalmente en Línea",null,null,0]
["IDENTIFICADOR","TRÁMITE","CANAL ATENCIÓN","PUNTUACIÓN",null,null,null,null,"No se completa totalmente en línea.",null,null,10]
["MINFIN-004-01-02","Actualización del catálogo de organismos y correlativos (préstamos/donaciones) para entidades que conforman el Presupuesto General del Estado.","No se completa totalmente en línea.",{"$f":"IF(ISBLANK(C5),\"\",IF(C5=\"Totalmente en línea\",0,IF(C5=\"Inicia en línea\",6,10)))","v":10}]
["MINFIN-003-01-04 ","Actualización del Catálogo General de Administración de Fondos para entidades del sector público no financiero","No se completa totalmente en línea.",{"$f":"IF(ISBLANK(C6),\"\",IF(C6=\"Totalmente en línea\",0,IF(C6=\"Inicia en línea\",6,10)))","v":10}]
["MINFIN-006-01-01","Autorización para emisión y colocación de títulos - valores internacionales de entidades públicas fuera del Presupuesto General del Estado.","No se completa totalmente en línea.",10]
["MINFIN-008-01-02","Autorización para la creación, modificación, emisión o eliminación de especies fiscales de las instituciones del Presupuesto General del Estado.","No se completa totalmente en línea.",10]
["MEF-020-05-01","Disolución de la personería jurídica de las organizaciones sociales","No se completa totalmente en línea.",10]
["MEF-019-02-03 ","Emisión de dictamen de no afectación presupuestaria para instrumentos administrativos de las entidades del Resto del Sector Público","No se completa totalmente en línea.",10]
["MEF-019-02-02","Emisión de dictamen sobre disponibilidad de recursos financieros para empresas públicas y gobiernos autónomos descentralizados","No se completa totalmente en línea.",10]
["MINFIN-018-01-01","Implantación de las herramientas transaccionales del Sistema Integrado de las Finanzas Públicas en entidades fuera del Presupuesto General del Estado.","No se completa totalmente en línea.",10]
["MEF-020-02-01","Inclusión y/o exclusión de miembros de las organizaciones sociales.","No se completa totalmente en línea.",10]
["MEF-020-01-01","Reconocimiento de directiva de las organizaciones sociales","No se completa totalmente en línea.",10]
["MEF-020-03-01","Reconocimiento de la persona jurídica y estatuto de las organizaciones sociales.","No se completa totalmente en línea.",10]
["MEF-020-04-01","Reformas del estatuto de las organizaciones sociales","No se completa totalmente en línea.",10]
["MINFIN-015-01-03","Solicitud de Información de Gestión del Sistema Nacional de las Finanzas Públicas, automatizada a través de las herramientas de gestión administrativa financiera","No se completa totalmente en línea.",10]
["MEF-005-02-01","Taller presencial para el uso de las herramientas informáticas de las Finanzas Públicas dirigido a servidores públicos que trabajen en las entidades que conforman el Presupuesto General del Estado.","No se completa totalmente en línea.",10]
["MINFIN-003-01-01","Actualización del Plan de Cuentas Contables para entidades del sector público no financiero","No se completa totalmente en línea.",10]
["MINFIN-009-02-01 ","Extinción de deuda entre entidades del Sector Público.","No se completa totalmente en línea.",10]
["MINFIN-013-03-03","Autorización de cierre de cuentas monetarias por cierre de Entidad que no pertenecen al Presupuesto General del Estado.","No se completa totalmente en línea.",10]
["MINFIN-013-01-04","Autorización de apertura de cuentas de fondos de terceros para las instituciones del sector público, exceptuando las de la seguridad social.","No se completa totalmente en línea.",10]
["MINFIN-012-01-01","Otorgamiento de garantía soberana a instituciones fuera del Presupuesto General del Estado","No se completa totalmente en línea.",10]
["MINFIN-003-01-06 ","Actualización del Catálogo de Retenciones y descuentos a beneficiarios para entidades del sector público no financiero","No se completa totalmente en línea.",10]
["MINFIN-013-01-05","Autorización de apertura de cuentas de Fideicomiso para las instituciones del sector público, financieras públicas, exceptuando los de la seguridad social.","Totalmente en Línea",0]
["MINFIN-013-01-06","Autorización de apertura de cuentas en el exterior o por excepción para las instituciones del sector público no financiero, exceptuando las de la seguridad social.","No se completa totalmente en línea.",10]
["MINFIN-007-01-01","Autorización para contratación de endeudamiento público para las instituciones fuera del Presupuesto General del Estado.","No se completa totalmente en línea.",10]
["MINFIN-004-02-01","Actualización del Clasificador presupuestario de ingresos y egresos (gastos) del Sector Público","No se completa totalmente en línea.",10]
["MINFIN-009-01-01","Autorización de fideicomisos públicos.","No se completa totalmente en línea.",10]
["MINFIN-010-01-01","Autorización para inversiones financieras de entidades del Sector Público no Financiero","No se completa totalmente en línea.",10]
["MINFIN-002-01-04","Asignación de equipos biométricos a funcionarios autorizadores de pagos de las entidades del Sector Público.","No se completa totalmente en línea.",10]
["MINFIN-013-02-01","Autorización de actualización de la denominación de las cuentas de las instituciones del sector público, exceptuando las de la seguridad social. ","No se completa totalmente en línea.",10]
["MINFIN-017-01-01","Habilitación de la opción para la carga de contratos de obras y/o servicios de años anteriores para las entidades del Presupuesto General del Estado y Empresas Públicas que reciben transferencias del Presupuesto General del Estado","No se completa totalmente en línea.",10]
["MINFIN-005-01-01","Capacitación virtual para el uso de las herramientas informáticas de las Finanzas Públicas dirigido a servidores públicos que trabajen en las entidades que conforman el Presupuesto General del Estado.","Totalmente en Línea",0]
["MINFIN-002-01-08","Reposición de un nuevo equipo biométrico (dongle y/o lector) en caso de pérdida, robo, hurto y/o daño por parte de los funcionarios autorizadores de pagos de las entidades del Sector Público.","No se completa totalmente en línea.",10]
["MINFIN-003-01-05 ","Actualización del Catálogo General de asientos tipo para entidades del sector público no financiero","No se completa totalmente en línea.",10]
["MINFIN-013-03-02","Autorización de cierre de cuentas monetarias por cierre de entidad que pertenecen al Presupuesto General del Estado.","No se completa totalmente en línea.",10]
["MINFIN-002-01-07","Desactivación o baja del computador registrado para autorización de pagos mediante el uso del equipo biométrico por pérdida, robo o daño.","No se completa totalmente en línea.",10]
["MINFIN-013-01-03","Autorización de apertura de cuentas de crédito para las instituciones del sector público, exceptuando los de la seguridad social.","No se completa totalmente en línea.",10]
["MINFIN-001-01-03","Creación de usuarios especiales de consulta para entidades de control","No se completa totalmente en línea.",10]
["MINFIN-013-03-01","Autorización de cierre de cuentas monetarias por terminación del objeto de la cuenta correspondiente a entidades del sector público exceptuando las de la seguridad social.","No se completa totalmente en línea.",10]
["MINFIN-008-01-01","Autorización para la creación, modificación o eliminación de tasas de las instituciones del Presupuesto General del Estado","No se completa totalmente en línea.",10]
["MEF-019-02-01","Emisión de dictamen presupuestario de las entidades del Presupuesto General del Estado","No se completa totalmente en línea.",10]
["MINFIN-002-01-06","Devolución del equipo biométrico por fusión, absorción, cambio de denominación, cambio de modelo de gestión administrativa financiera o cierre de las entidades del Sector Público.","No se completa totalmente en línea.",10]
["MINFIN-015-01-02","Información publicada sobre las finanzas públicas","No se completa totalmente en línea.",10]
["MINFIN-002-01-02","Actualización de funcionarios autorizadores de pagos de las Entidades del Sector Público en el Sistema Biométrico de pagos.","No se completa totalmente en línea.",10]
["MINFIN-013-01-01","Autorización de apertura de cuentas operativas de las instituciones del sector público, exceptuando los de la seguridad social.","No se completa totalmente en línea.",10]
["MINFIN-013-01-02","Autorización de apertura de cuentas de donación para las instituciones del sector público, exceptuando los de la seguridad social.","No se completa totalmente en línea.",10]
["MINFIN-003-01-02","Actualización del Catálogo General de Bienes para las entidades del sector público no financiero","No se completa totalmente en línea.",10]
["MINFIN-001-01-01","Creación de usuarios administradores financieros/informáticos de las Entidades del Sector Público no Financiero","No se completa totalmente en línea.",10]
["MEF-019-01-01","Emisión de certificaciones presupuestarias anuales y/o plurianuales de la entidades del Presupuesto General del Estado.","Totalmente en Línea",0]
["MINFIN-002-01-01","Enrolamiento en el Sistema Biométrico de pagos para funcionarios autorizadores de pagos de las entidades del Sector Público.","Totalmente en Línea",0]
["MINFIN-001-01-02","Creación de usuarios de Gobiernos Autónomos Descentralizados y Empresas Públicas.","No se completa totalmente en línea.",10]
["MINFIN-001-02-01","Reseteo y Activación de Contraseñas","No se completa totalmente en línea.",10]
["MINFIN-003-01-03","Actualización del Catálogo General de Existencias para el sector público no financiero","No se completa totalmente en línea.",10]
["MINFIN-009-03-01","Validación de fondos","No se completa totalmente en línea.",10]
["MINFIN-015-01-01 ","Solicitud oficial sobre entrega de información de las finanzas públicas","No se completa totalmente en línea.",10]
["MINFIN-004-01-01","Actualización del catálogo de instituciones y entidades operativas desconcentradas del Sector Público No Financiero","No se completa totalmente en línea.",10]
["MINFIN-002-01-03","Desactivación y activación de funcionarios autorizadores de pagos de las entidades del Sector Público enrolados por ausencia temporal o permanente.","No se completa totalmente en línea.",10]
["MINFIN-011-01-01","Habilitación de registros contables para las entidades que transaccionan en el sistema e-SIGEF a nivel nacional.","No se completa totalmente en línea.",10]
["MEF-016-02-01","Asistencia técnica, conceptual y normativa de las Finanzas Públicas a través del canal telefónico.","No se completa totalmente en línea.",10]
["MINFIN-016-01-01","Asistencia técnica, conceptual y normativa de las Finanzas Públicas de forma presencial.","No se completa totalmente en línea.",10]
["MEF-016-03-01","Asistencia técnica, conceptual y normativa de las Finanzas Públicas mediante correo electrónico u oficio.","No se completa totalmente en línea.",10]
["MINFIN-014-03-01","Aprobación de modificaciones a los distributivos de remuneraciones mensuales unificadas institucionales, elaboradas por las entidades que forman parte del Presupuesto General del Estado","No se completa totalmente en línea.",10]
["MINFIN-014-02-01 ","Aprobación de reprogramaciones financieras elaboradas por las entidades que forman parte del Presupuesto General del Estado.","No se completa totalmente en línea.",10]
["MINFIN-014-01-01","Aprobación de modificaciones presupuestarias para las entidades que conforman el Presupuesto General del Estado","No se completa totalmente en línea.",10]

{"sheet":"RESUMEN","index":8,"n_rows":65,"n_cols":25,"rows_kept":65,"cut":false,"hidden":false,"merged":[[1,0,2,0],[1,1,2,1],[1,2,2,2],[1,3,2,3],[1,4,2,4],[1,9,1,10],[1,11,1,12],[0,2,0,6],[0,7,0,12],[1,5,2,5],[1,6,2,6],[1,7,1,8]]}
[null,null,"BÁSICOS",null,null,null,null,"ADICIONALES"]
["ID trámite","Nombre del trámite","Demanda","Quejas","Costo para administración","Tiempo de respuesta","Canal de atención","Necesidades ciudadanas",null,"Susceptibilidad a corrupción",null,"Volumen de devoluciones",null,"PUNTAJE TOTAL"]
[null,null,null,null,null,null,null,"Criterio","Puntuación","Criterio","Puntuación","Criterio","Puntuación",null,null,null,null,null,null,null,"demanda",0,3,6,10]
["MINFIN-004-01-02","Actualización del catálogo de organismos y correlativos (préstamos/donaciones) para entidades que conforman el Presupuesto General del Estado.",0,0,10,0,10,"NO",{"$f":"IF(H4=\"SI\",5,0)","v":0},"NO",{"$f":"IF(J4=\"SI\",10,0)","v":0},"NO",{"$f":"IF(L4=\"SI\",5,0)","v":0},{"$f":"SUM(C4:G4,I4,K4,M4)","v":20},null,null,null,null,null,null,"quejas",0,4,10]
["MINFIN-003-01-04 ","Actualización del Catálogo General de Administración de Fondos para entidades del sector público no financiero",0,0,10,0,10,"NO",{"$f":"IF(H5=\"SI\",5,0)","v":0},"NO",{"$f":"IF(J5=\"SI\",10,0)","v":0},"NO",{"$f":"IF(L5=\"SI\",5,0)","v":0},{"$f":"SUM(C5:G5,I5,K5,M5)","v":20},null,null,null,null,null,null,"cpa",5,10,20]
["MINFIN-006-01-01","Autorización para emisión y colocación de títulos - valores internacionales de entidades públicas fuera del Presupuesto General del Estado.",0,0,5,30,10,"NO",0,"NO",0,"NO",0,45,null,null,null,null,null,null,"tr",0,30]
["MINFIN-008-01-02","Autorización para la creación, modificación, emisión o eliminación de especies fiscales de las instituciones del Presupuesto General del Estado.",0,0,5,30,10,"NO",0,"NO",0,"NO",0,45,null,null,null,null,null,null,"ca",0,10]
["MEF-020-05-01","Disolución de la personería jurídica de las organizaciones sociales",0,0,5,30,10,"NO",0,"NO",0,"NO",0,45,null,null,null,null,null,null,null,"SI","NO"]
["MEF-019-02-03 ","Emisión de dictamen de no afectación presupuestaria para instrumentos administrativos de las entidades del Resto del Sector Público",0,0,10,30,10,"NO",0,"NO",0,"NO",0,50]
["MEF-019-02-02","Emisión de dictamen sobre disponibilidad de recursos financieros para empresas públicas y gobiernos autónomos descentralizados",0,0,5,30,10,"NO",0,"NO",0,"NO",0,45]
["MINFIN-018-01-01","Implantación de las herramientas transaccionales del Sistema Integrado de las Finanzas Públicas en entidades fuera del Presupuesto General del Estado.",0,0,5,30,10,"NO",0,"NO",0,"NO",0,45]
["MEF-020-02-01","Inclusión y/o exclusión de miembros de las organizaciones sociales.",0,0,5,0,10,"NO",0,"NO",0,"NO",0,15]
["MEF-020-01-01","Reconocimiento de directiva de las organizaciones sociales",0,0,5,0,10,"NO",0,"NO",0,"NO",0,15]
["MEF-020-03-01","Reconocimiento de la persona jurídica y estatuto de las organizaciones sociales.",0,0,5,30,10,"NO",0,"NO",0,"NO",0,45]
["MEF-020-04-01","Reformas del estatuto de las organizaciones sociales",0,0,20,30,10,"NO",0,"NO",0,"NO",0,60]
["MINFIN-015-01-03","Solicitud de Información de Gestión del Sistema Nacional de las Finanzas Públicas, automatizada a través de las herramientas de gestión administrativa financiera",0,0,10,0,10,"NO",0,"NO",0,"NO",0,20]
["MEF-005-02-01","Taller presencial para el uso de las herramientas informáticas de las Finanzas Públicas dirigido a servidores públicos que trabajen en las entidades que conforman el Presupuesto General del Estado.",0,0,10,30,10,"NO",0,"NO",0,"NO",0,50]
["MINFIN-003-01-01","Actualización del Plan de Cuentas Contables para entidades del sector público no financiero",3,0,10,30,10,"NO",0,"NO",0,"NO",0,53]
["MINFIN-009-02-01 ","Extinción de deuda entre entidades del Sector Público.",3,0,10,30,10,"NO",0,"NO",0,"NO",0,53]
["MINFIN-013-03-03","Autorización de cierre de cuentas monetarias por cierre de Entidad que no pertenecen al Presupuesto General del Estado.",3,0,10,0,10,"NO",0,"NO",0,"NO",0,23]
["MINFIN-013-01-04","Autorización de apertura de cuentas de fondos de terceros para las instituciones del sector público, exceptuando las de la seguridad social.",3,0,10,30,10,"NO",0,"NO",0,"NO",0,53]
["MINFIN-012-01-01","Otorgamiento de garantía soberana a instituciones fuera del Presupuesto General del Estado",3,0,10,30,10,"NO",0,"NO",0,"NO",0,53]
["MINFIN-003-01-06 ","Actualización del Catálogo de Retenciones y descuentos a beneficiarios para entidades del sector público no financiero",3,0,10,0,10,"NO",0,"NO",0,"NO",0,23]
["MINFIN-013-01-05","Autorización de apertura de cuentas de Fideicomiso para las instituciones del sector público, financieras públicas, exceptuando los de la seguridad social.",3,0,10,30,0,"NO",0,"NO",0,"NO",0,43]
["MINFIN-013-01-06","Autorización de apertura de cuentas en el exterior o por excepción para las instituciones del sector público no financiero, exceptuando las de la seguridad social.",3,0,10,30,10,"NO",0,"NO",0,"NO",0,53]
["MINFIN-007-01-01","Autorización para contratación de endeudamiento público para las instituciones fuera del Presupuesto General del Estado.",3,0,20,30,10,"NO",0,"NO",0,"NO",0,63]
["MINFIN-004-02-01","Actualización del Clasificador presupuestario de ingresos y egresos (gastos) del Sector Público",3,0,20,30,10,"NO",0,"NO",0,"NO",0,63]
["MINFIN-009-01-01","Autorización de fideicomisos públicos.",3,0,20,30,10,"NO",0,"NO",0,"NO",0,63]
["MINFIN-010-01-01","Autorización para inversiones financieras de entidades del Sector Público no Financiero",3,0,20,30,10,"NO",0,"NO",0,"NO",0,63]
["MINFIN-002-01-04","Asignación de equipos biométricos a funcionarios autorizadores de pagos de las entidades del Sector Público.",3,0,20,0,10,"NO",0,"NO",0,"NO",0,33]
["MINFIN-013-02-01","Autorización de actualización de la denominación de las cuentas de las instituciones del sector público, exceptuando las de la seguridad social. ",3,0,20,30,10,"NO",0,"NO",0,"NO",0,63]
["MINFIN-017-01-01","Habilitación de la opción para la carga de contratos de obras y/o servicios de años anteriores para las entidades del Presupuesto General del Estado y Empresas Públicas que reciben transferencias del Presupuesto General del Estado",3,0,20,0,10,"NO",0,"NO",0,"NO",0,33]
["MINFIN-005-01-01","Capacitación virtual para el uso de las herramientas informáticas de las Finanzas Públicas dirigido a servidores públicos que trabajen en las entidades que conforman el Presupuesto General del Estado.",3,0,20,30,0,"NO",0,"NO",0,"NO",0,53]
["MINFIN-002-01-08","Reposición de un nuevo equipo biométrico (dongle y/o lector) en caso de pérdida, robo, hurto y/o daño por parte de los funcionarios autorizadores de pagos de las entidades del Sector Público.",6,0,20,0,10,"NO",0,"NO",0,"NO",0,36]
["MINFIN-003-01-05 ","Actualización del Catálogo General de asientos tipo para entidades del sector público no financiero",6,0,20,0,10,"NO",0,"NO",0,"NO",0,36]
["MINFIN-013-03-02","Autorización de cierre de cuentas monetarias por cierre de entidad que pertenecen al Presupuesto General del Estado.",6,0,20,30,10,"NO",0,"NO",0,"NO",0,66]
["MINFIN-002-01-07","Desactivación o baja del computador registrado para autorización de pagos mediante el uso del equipo biométrico por pérdida, robo o daño.",6,0,20,0,10,"NO",0,"NO",0,"NO",0,36]
["MINFIN-013-01-03","Autorización de apertura de cuentas de crédito para las instituciones del sector público, exceptuando los de la seguridad social.",6,0,20,30,10,"NO",0,"NO",0,"NO",0,66]
["MINFIN-001-01-03","Creación de usuarios especiales de consulta para entidades de control",6,0,20,0,10,"NO",0,"NO",0,"NO",0,36]
["MINFIN-013-03-01","Autorización de cierre de cuentas monetarias por terminación del objeto de la cuenta correspondiente a entidades del sector público exceptuando las de la seguridad social.",6,0,20,30,10,"NO",0,"NO",0,"NO",0,66]
["MINFIN-008-01-01","Autorización para la creación, modificación o eliminación de tasas de las instituciones del Presupuesto General del Estado",6,0,20,30,10,"NO",0,"NO",0,"NO",0,66]
["MEF-019-02-01","Emisión de dictamen presupuestario de las entidades del Presupuesto General del Estado",6,0,20,30,10,"NO",0,"NO",0,"NO",0,66]
["MINFIN-002-01-06","Devolución del equipo biométrico por fusión, absorción, cambio de denominación, cambio de modelo de gestión administrativa financiera o cierre de las entidades del Sector Público.",6,0,20,0,10,"NO",0,"NO",0,"NO",0,36]
["MINFIN-015-01-02","Información publicada sobre las finanzas públicas",6,0,20,0,10,"NO",0,"NO",0,"NO",0,36]
["MINFIN-002-01-02","Actualización de funcionarios autorizadores de pagos de las Entidades del Sector Público en el Sistema Biométrico de pagos.",6,0,20,0,10,"NO",0,"NO",0,"NO",0,36]
["MINFIN-013-01-01","Autorización de apertura de cuentas operativas de las instituciones del sector público, exceptuando los de la seguridad social.",6,0,10,30,10,"NO",0,"NO",0,"NO",0,56]
["MINFIN-013-01-02","Autorización de apertura de cuentas de donación para las instituciones del sector público, exceptuando los de la seguridad social.",6,0,10,30,10,"NO",0,"NO",0,"NO",0,56]
["MINFIN-003-01-02","Actualización del Catálogo General de Bienes para las entidades del sector público no financiero",6,0,10,30,10,"NO",0,"NO",0,"NO",0,56]
["MINFIN-001-01-01","Creación de usuarios administradores financieros/informáticos de las Entidades del Sector Público no Financiero",6,0,20,0,10,"NO",0,"NO",0,"NO",0,36]
["MEF-019-01-01","Emisión de certificaciones presupuestarias anuales y/o plurianuales de la entidades del Presupuesto General del Estado.",10,0,5,30,0,"NO",0,"NO",0,"NO",0,45]
["MINFIN-002-01-01","Enrolamiento en el Sistema Biométrico de pagos para funcionarios autorizadores de pagos de las entidades del Sector Público.",10,0,5,0,0,"NO",0,"NO",0,"NO",0,15]
["MINFIN-001-01-02","Creación de usuarios de Gobiernos Autónomos Descentralizados y Empresas Públicas.",10,0,5,0,10,"NO",0,"NO",0,"NO",0,25]
["MINFIN-001-02-01","Reseteo y Activación de Contraseñas",10,0,5,0,10,"NO",0,"NO",0,"NO",0,25]
["MINFIN-003-01-03","Actualización del Catálogo General de Existencias para el sector público no financiero",10,0,5,30,10,"NO",0,"NO",0,"NO",0,55]
["MINFIN-009-03-01","Validación de fondos",10,0,5,0,10,"NO",0,"NO",0,"NO",0,25]
["MINFIN-015-01-01 ","Solicitud oficial sobre entrega de información de las finanzas públicas",10,0,10,30,10,"NO",0,"NO",0,"NO",0,60]
["MINFIN-004-01-01","Actualización del catálogo de instituciones y entidades operativas desconcentradas del Sector Público No Financiero",10,0,5,0,10,"NO",0,"NO",0,"NO",0,25]
["MINFIN-002-01-03","Desactivación y activación de funcionarios autorizadores de pagos de las entidades del Sector Público enrolados por ausencia temporal o permanente.",10,0,5,0,10,"NO",0,"NO",0,"NO",0,25]
["MINFIN-011-01-01","Habilitación de registros contables para las entidades que transaccionan en el sistema e-SIGEF a nivel nacional.",10,0,5,0,10,"NO",0,"NO",0,"NO",0,25]
["MEF-016-02-01","Asistencia técnica, conceptual y normativa de las Finanzas Públicas a través del canal telefónico.",10,0,5,0,10,"NO",0,"NO",0,"NO",0,25]
["MINFIN-016-01-01","Asistencia técnica, conceptual y normativa de las Finanzas Públicas de forma presencial.",10,0,5,0,10,"NO",0,"NO",0,"NO",0,25]
["MEF-016-03-01","Asistencia técnica, conceptual y normativa de las Finanzas Públicas mediante correo electrónico u oficio.",10,0,5,30,10,"NO",0,"NO",0,"NO",0,55]
["MINFIN-014-03-01","Aprobación de modificaciones a los distributivos de remuneraciones mensuales unificadas institucionales, elaboradas por las entidades que forman parte del Presupuesto General del Estado",10,0,5,0,10,"NO",0,"NO",0,"NO",0,25]
["MINFIN-014-02-01 ","Aprobación de reprogramaciones financieras elaboradas por las entidades que forman parte del Presupuesto General del Estado.",10,0,5,0,10,"NO",0,"NO",0,"NO",0,25]
["MINFIN-014-01-01","Aprobación de modificaciones presupuestarias para las entidades que conforman el Presupuesto General del Estado",10,0,5,0,10,"NO",0,"NO",0,"NO",0,25]